Cogmind - Beta 11 X8 @@@ ROGUE MODE // 2021.10.27 @ 13:07:18 Player: Terminus Result: Self-destructed Performance ------------- Evolutions (8) 4000 Regions Visited (33) 6600 Robots Destroyed (514) 2570 Value Destroyed (24243) 24243 Prototype IDs (93) 1860 Alien Tech Used (12) 2400 Bonus (10180) 10180 TOTAL SCORE: 51853 Bonus ------- High Alert Combat Kills 1937 Follower Combat Kills 732 Network Hubs Disabled 200 Aligned with FarCom 300 Met Data Miner 300 Met Zhirov 300 Met Warlord at Base 500 MAIN.C Attacked Warlord 500 Warlord Defense Kill 5296 A7 Reached Mainframe 300 Met R17 at Cetus 500 Scanned by Researcher 500 Pursued by Intercept 500 Friendly Fire -1685 Cogmind --------- Core Integrity 1500/1700 Matter 161/300 Energy 350/350 System Corruption 0% Temperature Cool (9) Movement Immobile (Siege) Location -2/Research Parts ------- > --- POWER (2) -------- Improved Quantum Reactor > --- PROPULSION (4) --- Medium Treads Armored Medium Treads High-density Centrium Heavy Treads > --- UTILITY (14) ----- Experimental Cooling System Huge Storage Unit Long-range Sensor Array Experimental Signal Interpreter Experimental Targeting Computer Experimental Targeting Computer Advanced Target Analyzer Advanced Armor Integrity Analyzer Advanced Weapon Cycler Experimental Weapon Shielding EM Dispersion Field Improved Hacking Suite > --- WEAPON (4) ------- Railgun Helical Railgun Multirail Multirail > --- INVENTORY (25) --- Light Quantum Reactor Medium Treads Medium Treads Armored Medium Treads Advanced Matter Compressor (21) Experimental Targeting Computer Experimental Targeting Computer High-powered Transdimensional Reconstructor Railgun Railgun Railgun 8R-AWN's Boregun 8R-AWN's Boregun Compact Tesla Bomb Launcher Advanced Remote Datajack Advanced Remote Datajack Improved Plasma Cutter Peak State ------------ > --- POWER ------------ Vortex Chain Reactor > --- PROPULSION ------- High-density Centrium Heavy Treads High-density Centrium Heavy Treads > --- UTILITY ---------- Experimental Cooling System Huge Storage Unit Long-range Sensor Array Experimental Signal Interpreter Experimental Targeting Computer Advanced Target Analyzer Advanced Transmission Jammer EM Dispersion Field Experimental Force Field Improved Hacking Suite Quantum Router > --- WEAPON ----------- Hypervelocity Railgun Helical Railgun 8R-AWN's Boregun 8R-AWN's Boregun > --- INVENTORY -------- Vortex Chain Reactor High-density Centrium Heavy Treads High-density Centrium Heavy Treads Advanced Matter Compressor Advanced Armor Integrity Analyzer Advanced Weapon Cycler Experimental Weapon Shielding Experimental Weapon Shielding Long-range Tractor Beam Dimensional Node Initializer Transdimensional Reconstructor High-powered Transdimensional Reconstructor High-powered Transdimensional Reconstructor Integrated Mediator Railgun Railgun Railgun Railgun Compact Tesla Bomb Launcher Improved Plasma Cutter [Rating: 196] Favorites ----------- Power Heavy Ion Engine Engine Heavy Ion Engine Reactor Quantum Reactor Propulsion Centrium Heavy Treads Treads Centrium Heavy Treads Utility Huge Storage Unit Device Advanced Weapon Cycler Storage Huge Storage Unit Processor Experimental Targeting Computer Hackware Improved Hacking Suite Protection Centrium Medium Armor Plating Weapon Enhanced Autogun Ballistic Gun Enhanced Autogun Ballistic Cannon Light Cannon Launcher Rocket Launcher Special Weapon Plasma Cutter Impact Weapon Core Stripper Slashing Weapon Scythe Piercing Weapon Makeshift Spear Build | -11 -10 -10 -9 -9 -9 -8 -8 -7 -7 -7 -7 -7 -7 -6 -6 -6 -6 -6 -6 -5 -5 -5 -5 -4 -4 -4 -4 -4 -3 -3 -3 -3 -2 ------- Run | Scr Mat Min Mat Min Exi Min Mat Fac Was Fac Low Low Dat Pro Fac Ext Cet Arc Hub Fac Upp Upp Zhi Pro Fac Upp Upp War Pro Res Qua Sec Res Slots Evolved 16 | . . . 2 . . . 2 2 . . . . . . 2 . . . . 2 . . . . 2 . . . . 2 . . 2 Power 1 | . . . . . . . . . . . . . . . . . . . . . . . . . . . . . . 1 . . . Propulsion 2 | . . . . . . . 1 . . . . . . . 1 . . . . . . . . . . . . . . . . . . Utility 11 | . . . 1 . . . 1 2 . . . . . . 1 . . . . 1 . . . . 2 . . . . 1 . . 2 Weapon 2 | . . . 1 . . . . . . . . . . . . . . . . 1 . . . . . . . . . . . . . Parts Attached 556 | 6 5 1 25 . 9 2 30 11 7 41 . 8 10 . 47 28 22 12 2 17 5 3 6 . 42 8 4 25 2 48 31 94 5 Power 21 | 1 . . 2 . . . . 1 . 2 . . 1 . 3 . 1 . . . . . 1 . . . . 2 . 4 . 3 . Engine 8 | 1 . . 2 . . . . 1 . 2 . . . . 2 . . . . . . . . . . . . . . . . . . Core . | . . . . . . . . . . . . . . . . . . . . . . . . . . . . . . . . . . Reactor 13 | . . . . . . . . . . . . . 1 . 1 . 1 . . . . . 1 . . . . 2 . 4 . 3 . Propulsion 47 | 2 . . 7 . . . 10 1 3 4 . 1 . . 5 . 2 . . . . . . . 1 1 . . . 2 4 2 2 Treads 47 | 2 . . 7 . . . 10 1 3 4 . 1 . . 5 . 2 . . . . . . . 1 1 . . . 2 4 2 2 Leg . | . . . . . . . . . . . . . . . . . . . . . . . . . . . . . . . . . . Wheel . | . . . . . . . . . . . . . . . . . . . . . . . . . . . . . . . . . . Hover . | . . . . . . . . . . . . . . . . . . . . . . . . . . . . . . . . . . Flight . | . . . . . . . . . . . . . . . . . . . . . . . . . . . . . . . . . . Utility 321 | 1 2 1 8 . 2 . 10 7 4 17 . 2 3 . 25 21 7 8 2 15 4 3 5 . 29 6 2 13 1 37 22 61 3 Device 190 | . 1 . 1 . 1 . 1 3 4 8 . 2 2 . 16 14 5 5 1 8 2 . 1 . 10 2 . 9 1 23 18 49 3 Storage 11 | 1 1 1 2 . . . 1 . . . . . . . 2 . . . . . . . 1 . 1 . . . . . . 1 . Processor 19 | . . . 1 . . . . 3 . 1 . . . . 2 . 1 . . 1 . . . . 3 . . . . 3 2 2 . Hackware 8 | . . . . . . . 1 . . 1 . . . . 1 . . 1 . 1 . . . . . . 1 . . 2 . . . Protection 93 | . . . 4 . 1 . 7 1 . 7 . . 1 . 4 7 1 2 1 5 2 3 3 . 15 4 1 4 . 9 2 9 . Artifact . | . . . . . . . . . . . . . . . . . . . . . . . . . . . . . . . . . . Weapon 167 | 2 3 . 8 . 7 2 10 2 . 18 . 5 6 . 14 7 12 4 . 2 1 . . . 12 1 2 10 1 5 5 28 . Energy Gun . | . . . . . . . . . . . . . . . . . . . . . . . . . . . . . . . . . . Energy Cannon . | . . . . . . . . . . . . . . . . . . . . . . . . . . . . . . . . . . Ballistic Gun 137 | 2 . . 8 . 2 . 9 2 . 12 . 5 5 . 10 6 12 3 . 2 1 . . . 8 1 2 9 1 5 4 28 . Ballistic Cannon 7 | . 3 . . . 3 1 . . . . . . . . . . . . . . . . . . . . . . . . . . . Launcher 5 | . . . . . . 1 1 . . 1 . . . . 2 . . . . . . . . . . . . . . . . . . Special Weapon 3 | . . . . . 1 . . . . . . . . . . . . 1 . . . . . . . . . 1 . . . . . Impact Weapon 1 | . . . . . . . . . . . . . . . . . . . . . . . . . . . . . . . 1 . . Slashing Weapon 6 | . . . . . 1 . . . . 5 . . . . . . . . . . . . . . . . . . . . . . . Piercing Weapon 8 | . . . . . . . . . . . . . 1 . 2 1 . . . . . . . . 4 . . . . . . . . Special Melee Weapon . | . . . . . . . . . . . . . . . . . . . . . . . . . . . . . . . . . . Unidentified Prototypes 49 | . . . 1 . 2 . 1 . 1 2 . . . . 9 . 2 . . . . . 3 . 1 . . 4 1 5 6 11 . Corrupted Parts 2 | . . . . . . . . . . . . . . . . . 1 1 . . . . . . . . . . . . . . . System Corruption 8 | . . . . . . . . . . . . . . . . . 6 2 . . . . . . . . . . . . . . . Parts Lost 49 | . . . . . 4 . 3 . . . . . . . 3 . . . . . 2 1 . . 3 1 . 2 2 12 . 13 3 Power 5 | . . . . . . . . . . . . . . . . . . . . . . . . . . . . . . 2 . 2 1 Propulsion 7 | . . . . . . . 1 . . . . . . . . . . . . . . . . . 1 . . . . 2 . 3 . Utility 22 | . . . . . 2 . 2 . . . . . . . . . . . . . 1 1 . . . 1 . 1 1 5 . 6 2 Weapon 15 | . . . . . 2 . . . . . . . . . 3 . . . . . 1 . . . 2 . . 1 1 3 . 2 . Highest Loss Streak 7 | . . . . . 4 . 1 . . . . . . . 1 . . . . . 1 1 . . 1 1 . 1 1 5 . 7 3 Average Slot Usage (%) 91 | . 98 100 99 100 98 100 96 100 97 91 92 92 82 92 85 86 86 85 86 87 88 87 87 88 88 89 89 88 88 88 84 82 92 Engine 4 | . 14 14 11 11 11 11 9 7 7 7 7 7 6 . 2 6 5 . . . . . . . . . . . . . . . . Reactor 2 | . . . . . . . . . . . . . . 7 3 . . 6 6 5 5 5 4 5 5 5 5 5 5 7 4 5 7 Treads 15 | . 28 28 21 22 22 22 26 23 20 14 15 15 15 15 13 13 13 13 13 11 11 11 11 11 9 10 10 10 10 9 8 8 10 Device 15 | . 12 14 11 11 10 11 9 19 22 19 15 15 15 15 12 14 13 12 12 15 16 11 11 11 15 17 15 15 19 17 18 16 24 Storage 6 | . 14 14 11 11 11 11 9 7 7 7 7 7 7 7 6 6 6 6 6 5 5 5 5 5 5 5 5 5 5 4 4 4 4 Processor 11 | . . . 1 . . . . 15 15 15 15 15 15 15 20 13 13 13 13 11 11 11 11 11 15 15 15 13 10 12 14 16 20 Hackware 4 | . . . . . . . . . . . . . . . 6 6 6 6 6 11 11 11 11 11 10 10 10 10 10 14 14 7 4 Protection 4 | . . . 9 11 11 11 14 2 . 2 7 7 6 7 . 4 6 5 6 1 . 4 4 5 4 2 5 5 6 2 . 3 4 Ballistic Gun 20 | . 7 . 31 33 30 . 25 23 23 21 23 23 8 23 18 19 20 14 20 22 23 23 23 23 20 21 21 20 20 18 18 18 16 Ballistic Cannon 2 | . 20 28 1 . . 33 1 . . . . . . . . . . . . . . . . . . . . . . . . . . Naked Turns . | . . . . . . . . . . . . . . . . . . . . . . . . . . . . . . . . . . Heaviest Build 166 | 14 32 92 94 65 66 63 108 112 112 122 121 121 126 114 114 134 125 127 133 146 146 146 146 144 145 131 131 144 140 156 159 166 149 Greatest Support 190 | 40 40 40 40 40 40 40 66 62 92 98 98 98 98 98 140 140 160 160 160 160 160 160 160 160 160 160 160 160 160 160 180 190 155 Greatest Overweight (x) 2 | 2 . 2 2 1 1 1 1 1 1 1 1 1 1 1 . . . . . . . . . . . . . . . 1 1 1 1 Average Overweight (x) . | . . 1 . 1 1 1 1 1 1 1 1 1 1 1 . . . . . . . . . . . . . . . . . . . Largest Inventory Capacity 25 | 8 15 25 25 20 20 20 25 25 25 25 25 25 25 25 25 25 25 25 25 25 25 25 25 25 25 25 25 25 25 25 25 25 25 Average Capacity 23 | 7 11 21 16 20 20 20 24 25 25 25 25 25 25 25 25 25 25 25 25 25 25 25 25 25 25 25 25 25 25 25 25 25 25 Most Carried 25 | . 15 18 20 20 20 20 25 25 25 25 25 25 25 25 25 25 25 25 25 25 25 25 25 25 25 25 25 25 25 25 25 25 17 Average Carried 22 | . 9 17 15 20 19 20 23 24 24 24 25 25 24 25 22 24 24 24 24 24 23 24 24 25 24 24 24 24 23 24 23 21 15 Final Capacity 25 | 8 15 25 20 20 20 20 25 25 25 25 25 25 25 25 25 25 25 25 25 25 25 25 25 25 25 25 25 25 25 25 25 25 25 Final Carried 25 | . 15 18 20 20 20 20 25 25 25 25 25 25 25 25 25 25 25 25 25 25 23 25 25 25 25 25 24 25 24 18 25 16 17 Class Distribution -------------------- 31% | Scavenger-Skirmisher 26% | Scavenger-Gunner 12% | Scavenger-Tank 10% | Scavenger-Mutant 6% | Hacker-Gunner 6% | Mutant Dominant Class ---------------- Mutant | -10/Materials Mutant | -10/Mines Scavenger-Tank | -9/Materials Scavenger-Tank | -9/Mines Scavenger-Tank | -9/Exiles Scavenger-Tank | -8/Mines Scavenger-Tank | -8/Materials Scavenger-Mutant | -7/Factory Scavenger-Mutant | -7/Waste Scavenger-Skirmisher | -7/Factory Scavenger-Skirmisher | -7/Lower Caves Scavenger-Skirmisher | -7/Lower Caves Scavenger-Mutant | -7/Data Miner Scavenger-Skirmisher | -6/Proximity Caves Scavenger-Skirmisher | -6/Factory Scavenger-Skirmisher | -6/Extension Scavenger-Skirmisher | -6/Cetus Scavenger-Gunner | -6/Archives Scavenger-Skirmisher | -6/Hub_04(d) Scavenger-Skirmisher | -5/Factory Scavenger-Skirmisher | -5/Upper Caves Scavenger-Gunner | -5/Upper Caves Scavenger-Gunner | -5/Zhirov Scavenger-Gunner | -4/Proximity Caves Scavenger-Gunner | -4/Factory Scavenger-Gunner | -4/Upper Caves Scavenger-Gunner | -4/Upper Caves Scavenger-Gunner | -4/Warlord Scavenger-Gunner | -3/Proximity Caves Scavenger-Gunner | -3/Research Hacker-Gunner | -3/Quarantine Hacker-Gunner | -3/Section 7 Scavenger-Gunner | -2/Research Resources | -11 -10 -10 -9 -9 -9 -8 -8 -7 -7 -7 -7 -7 -7 -6 -6 -6 -6 -6 -6 -5 -5 -5 -5 -4 -4 -4 -4 -4 -3 -3 -3 -3 -2 ----------- Run | Scr Mat Min Mat Min Exi Min Mat Fac Was Fac Low Low Dat Pro Fac Ext Cet Arc Hub Fac Upp Upp Zhi Pro Fac Upp Upp War Pro Res Qua Sec Res Matter Collected 22224 | 242 378 194 796 158 70 . 1161 569 83 980 175 385 252 62 1483 992 586 331 171 734 168 277 200 79 2135 373 64 1208 366 2676 1253 3193 430 Remotely 5291 | . . . . . . . 292 . . . . . . . 401 605 182 . . . . . . . 667 . . 532 . 1245 268 1099 . Salvage Created 28958 | . 593 11 1259 176 120 16 1474 726 309 1109 29 275 453 40 1546 1335 588 466 347 1218 245 276 . 79 2431 276 248 2405 740 4434 1130 3026 1578 Parts 1507 | . 46 . 82 17 9 5 98 33 5 67 2 10 27 2 83 60 38 31 14 65 17 20 . 2 111 18 . 131 43 193 48 150 80 Haulers Intercepted 30 | . 2 . 5 . . . 5 1 . 3 . . . . 3 . . . 2 1 . . . . 4 . . . . 2 . 1 1 Recyclers Shooed 26 | . 5 . 2 1 . . 1 . . 1 . . . . 1 4 . . . 1 . . . . 2 . . . . 5 . 1 2 Parts Field Recycled . | . . . . . . . . . . . . . . . . . . . . . . . . . . . . . . . . . . Retrieved Matter . | . . . . . . . . . . . . . . . . . . . . . . . . . . . . . . . . . . Parts Self-Destructed 271 | . . . . . . . . . . . . 10 . 2 . . . . . . 17 19 . 2 . 17 . 161 43 . . . . Prevented 24 | . . . . . . . . . . . . . . . . . . . . . . 1 . . . . . 23 . . . . . Kills | -11 -10 -10 -9 -9 -9 -8 -8 -7 -7 -7 -7 -7 -7 -6 -6 -6 -6 -6 -6 -5 -5 -5 -5 -4 -4 -4 -4 -4 -3 -3 -3 -3 -2 ------- Run | Scr Mat Min Mat Min Exi Min Mat Fac Was Fac Low Low Dat Pro Fac Ext Cet Arc Hub Fac Upp Upp Zhi Pro Fac Upp Upp War Pro Res Qua Sec Res Combat Hostiles Destroyed 349 | . 17 1 21 5 1 4 25 9 . 15 . 4 4 . 15 20 7 3 1 13 7 6 . 1 28 4 . 35 10 35 12 32 14 Melee 2 | . . . . . 1 . . . . . . . . . . . . . . . . . . . . . . 1 . . . . . Guns 322 | . 3 . 21 5 . . 20 9 . 15 . 4 4 . 15 20 7 3 1 13 7 6 . 1 28 4 . 34 10 35 11 32 14 Cannons 20 | . 14 1 . . . . 5 . . . . . . . . . . . . . . . . . . . . . . . . . . AOE 4 | . . . . . . 4 . . . . . . . . . . . . . . . . . . . . . . . . . . . Classes Destroyed 27 | . 5 1 3 . . . 2 1 . 1 . 1 . . . . . . . 1 . . . . 2 . . 6 . 1 1 2 . Worker 27 | . . . 1 . . . 2 . . 1 . . . . 1 . . . 3 4 . . . . 1 . . . . 13 . . 1 Builder 28 | . . . . . . . 1 2 . . . . . . . 2 . . . 3 . . . . . . . . . 13 . 3 4 Tunneler 1 | . . . . . . . . . . . . . . . . . . . . 1 . . . . . . . . . . . . . Hauler 30 | . 2 . 5 . . . 5 1 . 3 . . . . 3 . . . 2 1 . . . . 4 . . . . 2 . 1 1 Recycler 18 | . 1 . 1 1 . . . . . 1 . . . . 2 1 . . . . . . . . 1 . . . . 6 . 2 2 Minesweeper 2 | . . . . . . . . . . . . 1 . 1 . . . . . . . . . . . . . . . . . . . Mechanic 2 | . . . . . . . . . . . . . . . . . . . . . . . . . . . . . . 2 . . . Operator 16 | . . . 2 . . . 2 . . . . . . . 1 2 . 6 . . . . . . 2 . . . . . . . 1 Watcher 35 | . 3 . 3 . . . 3 2 . 4 . . . . 1 1 2 . 1 2 . . . . 2 . . . . 6 3 1 1 Swarmer 61 | . 8 . 6 5 . 4 2 . . . . . . . . 4 . . . . 6 4 . . 8 . . 1 . 4 5 4 . Saboteur 2 | . . . . . . . . . . . . . . . . . . . . . . . . . . . . 2 . . . . . Grunt 112 | . 9 . 9 . . . 15 8 . 6 . 3 . . 6 12 1 . . 4 . . . . 1 . . 11 7 11 . 2 7 Brawler 7 | . . . . . . . . 1 . 1 . 1 . . . . . . . . . . . . . . . 2 . 2 . . . Duelist 4 | . . . . . . . . . . . . . . . . . . . . . . . . . 2 . . . 1 1 . . . Protector 4 | . . . . . . . . . . . . . . . . . . . . . . . . . . . . 4 . . . . . Researcher 2 | . . . . . . . . . . . . . . . . . . . . . . . . . . . . . . . . 2 . Sentry 35 | . . . 6 . . . 4 . . 2 . . . . 1 3 . 3 1 1 1 1 . 1 3 . . . . 2 . 4 2 Demolisher 2 | . . . . . . . . . . . . . . . . . . . . . . . . . . . . 2 . . . . . Specialist 2 | . . . . . . . . . . . . . . . . . . . . . . . . . . . . . . . . 2 . Hunter 36 | . . . . . . . 4 . . . . . . . 3 1 . . . 4 . 1 . . 6 4 . 5 . 6 . 2 . Programmer 55 | . . . . . . . . . . 6 . . . . 5 . 1 . . 4 . . . . 7 . . 1 2 9 6 9 5 Behemoth 2 | . . . . . . . . . . . . . . . . . . . . . . . . . 1 . . . . . . 1 . Cetus Guard 5 | . . . . . . . . . . . . . . . . . 5 . . . . . . . . . . . . . . . . S7 Guard 2 | . . . . . . . . . . . . . . . . . . . . . . . . . . . . . . . . 2 . Enhanced Grunt 4 | . . . . . . . . . . . . . 4 . . . . . . . . . . . . . . . . . . . . Tracker 2 | . . . . . . . . . . . . . . . . . . . . . . . . . . . . . . . . 2 . Combat Programmer 2 | . . . . . . . . . . . . . . . . . . . . . . . . . . . . . . . . 2 . Striker 3 | . . . . . . . . . . . . . . . . . . . . . . . . . . . . 3 . . . . . Executioner 7 | . . . . . . . . . . . . . . . . . . . . . . . . . . . . 5 . . . 2 . Fortress 1 | . . . . . . . . . . . . . . . . . . . . . . . . . . . . . . . 1 . . Decomposer 1 | . . . . . . . . . . . 1 . . . . . . . . . . . . . . . . . . . . . . Packrat 3 | . . . . . . . . . . . . . . . . . . . . . . . . . . . 3 . . . . . . Assembled 1 | . . 1 . . . . . . . . . . . . . . . . . . . . . . . . . . . . . . . Thug 1 | . . . . . . . . . . . . . . . . . . . . . . . . . . . . . . . 1 . . Mutant 1 | . . . . . . . . . . . . . . . . . . . . . . . . . . . . 1 . . . . . Best Kill Streak 27 | . 3 1 5 3 1 4 4 5 . 4 . 4 3 1 6 6 4 2 3 6 4 4 . 1 7 2 . 9 4 27 5 5 15 Combat Bots Only 9 | . 3 1 5 3 1 4 3 4 . 4 . 4 3 . 5 6 3 2 1 4 4 4 . 1 5 2 . 9 4 8 5 4 4 Max Kills in Single Turn 4 | . 1 1 2 1 1 2 1 2 . 1 1 3 1 1 1 2 2 1 3 3 2 2 . 1 3 1 1 4 2 3 2 2 3 Gunslinging 1 | . . . 1 . . . . . . . . . . . . 1 . . . . 1 1 . . 1 . . 1 1 1 . 1 1 Exploded 2 | . . . . . . 2 . . . . . . . . . . . . . . . . . . . . . . . . . . . Melee 1 | . . . . . 1 . . . . . . . . . . . . . . . . . . . . . . 1 . . . . . Uniques/NPCs Destroyed 3 | . . . . . 1 . . . . . . . 1 . . . 1 . . . . . . . . . . . . . . . . 8R-AWN (-9/Exiles) Data Miner (-7/Data Miner) Revision 17 (-6/Cetus) Combat | -11 -10 -10 -9 -9 -9 -8 -8 -7 -7 -7 -7 -7 -7 -6 -6 -6 -6 -6 -6 -5 -5 -5 -5 -4 -4 -4 -4 -4 -3 -3 -3 -3 -2 -------- Run | Scr Mat Min Mat Min Exi Min Mat Fac Was Fac Low Low Dat Pro Fac Ext Cet Arc Hub Fac Upp Upp Zhi Pro Fac Upp Upp War Pro Res Qua Sec Res Damage Taken 22617 | . 461 28 547 69 481 24 1198 153 . 665 264 . 95 . 1797 663 154 144 205 512 164 391 . 40 2246 348 . 1358 716 3132 514 5476 772 Core 1571 | . 109 17 77 . 53 . 145 13 . 30 . . . . 121 53 12 47 11 14 . 25 . . 110 35 . 43 57 128 54 312 105 Absorbed by Shields 1349 | . . . . . . . . . . . . . . . . . 60 . . . . . . . . . . 18 . . 244 1027 . Reduced by Siege Mode 1403 | . . . . . . . . . . . . . . . 178 37 7 . 23 42 . . . . 164 6 . 33 65 280 30 497 41 Core Remaining (%) 77 | 100 . 49 . . . 67 73 . . . . . . 93 . . . . 71 . . . . 96 . . . . 78 . . 72 . Volleys Fired 1073 | . 50 2 74 6 3 2 88 37 1 62 . 9 12 3 51 60 14 32 9 30 11 14 . 14 101 6 4 53 15 129 33 126 22 Largest 4 | . 2 2 3 3 1 1 3 2 2 3 . 3 2 3 3 3 3 3 3 4 4 4 . 4 4 4 4 4 4 4 4 4 4 Hottest 163 | . 70 70 66 69 20 33 117 60 60 85 . 75 60 75 89 88 95 105 105 138 136 136 . 136 136 128 128 134 139 148 148 163 163 Shots Fired 3263 | . 100 4 222 18 3 2 264 74 2 186 3 27 22 10 155 170 42 81 23 120 29 56 . 17 305 24 16 209 60 411 97 423 88 Gun 3134 | . 28 . 222 18 . . 228 74 2 186 3 27 22 10 155 170 42 69 23 120 29 56 . 17 305 24 16 209 60 411 97 423 88 Cannon 112 | . 72 4 . . . . 36 . . . . . . . . . . . . . . . . . . . . . . . . . . Launcher 2 | . . . . . . 2 . . . . . . . . . . . . . . . . . . . . . . . . . . . Special 15 | . . . . . 3 . . . . . . . . . . . . 12 . . . . . . . . . . . . . . . Kinetic 3246 | . 100 4 222 18 . . 264 74 2 186 3 27 22 10 155 170 42 69 23 120 29 56 . 17 305 24 16 209 60 411 97 423 88 Thermal 15 | . . . . . 3 . . . . . . . . . . . . 12 . . . . . . . . . . . . . . . Explosive 2 | . . . . . . 2 . . . . . . . . . . . . . . . . . . . . . . . . . . . Electromagnetic . | . . . . . . . . . . . . . . . . . . . . . . . . . . . . . . . . . . Robot Hit Streak 51 | . 6 1 22 14 4 . 10 7 7 15 . 13 13 3 36 18 24 16 22 26 8 11 . 11 51 17 17 24 12 33 26 44 34 Robot Miss Streak 8 | . 8 3 4 2 . . 4 2 . 2 . 2 1 2 1 6 2 4 . 2 1 1 . . 2 3 1 3 2 6 3 4 2 Penetration Max 3 | . . . . . . . . 1 . . . 2 . . 1 1 1 . . 3 1 . . . 1 1 1 3 1 2 1 1 2 Secondary Targets 79 | . . . 3 1 . . 3 2 . 2 . . . . 3 4 2 1 . 3 3 1 . . 7 1 . 9 4 12 3 10 5 Max Gunslinging Chain 2 | . . . 1 1 . . 1 1 . 1 . . . . 1 1 1 1 . 1 1 1 . . 1 1 . 1 2 1 1 2 1 Shots Hit Robots 2251 | . 56 1 144 7 17 . 164 48 1 134 . 18 19 6 132 94 32 55 18 89 16 38 . 4 201 19 10 145 48 282 59 322 72 Core Hits 1079 | . 27 2 54 7 6 5 72 25 1 49 1 7 7 3 53 46 15 27 10 50 11 16 . 3 80 10 5 82 23 150 28 140 64 Critical Kills 157 | . . . . . . . . 11 1 1 . 4 4 . 2 2 7 3 1 10 1 6 . . 15 3 . 28 7 26 3 14 8 Critical Parts Destroyed 217 | . . . 1 . . . 2 18 . 4 . 1 2 . 3 1 7 6 1 14 2 4 . 1 22 . 1 34 7 31 9 36 10 Critical Strikes 422 | . 1 . 1 . . . 4 30 1 5 . 5 10 . 6 3 16 11 2 25 3 10 . 1 39 3 1 71 14 63 12 67 18 Destroy 418 | . . . 1 . . . 2 30 1 5 . 5 10 . 5 3 16 11 2 25 3 10 . 1 39 3 1 71 14 63 12 67 18 Blast 3 | . 1 . . . . . 2 . . . . . . . . . . . . . . . . . . . . . . . . . . Puncture 1 | . . . . . . . . . . . . . . . 1 . . . . . . . . . . . . . . . . . . Melee Attacks 52 | . . . . . 14 . . . . 10 . . 6 . 10 1 . . . . . . . . 8 . . . . . 3 . . Kinetic 3 | . . . . . . . . . . . . . . . . . . . . . . . . . . . . . . . 3 . . Impact . | . . . . . . . . . . . . . . . . . . . . . . . . . . . . . . . . . . Slashing 24 | . . . . . 14 . . . . 10 . . . . . . . . . . . . . . . . . . . . . . . Piercing 25 | . . . . . . . . . . . . . 6 . 10 1 . . . . . . . . 8 . . . . . . . . Sneak Attacks 4 | . . . . . 1 . . . . . . . 1 . 2 . . . . . . . . . . . . . . . . . . Combat Hostiles . | . . . . . . . . . . . . . . . . . . . . . . . . . . . . . . . . . . Follow-up Attacks . | . . . . . . . . . . . . . . . . . . . . . . . . . . . . . . . . . . Damage Inflicted 53390 | . 947 42 2086 173 784 285 2660 1039 19 2509 43 354 427 126 2777 2474 744 1321 638 2248 351 500 . 65 4484 407 307 2023 1122 9540 1724 7927 3244 Guns 49139 | . 259 . 2030 109 . . 2125 1036 19 2461 . 354 326 99 2558 2466 744 1223 445 2091 351 500 . 65 4453 407 307 2023 1119 9368 1633 7856 2712 Cannons 1150 | . 650 20 . . . . 480 . . . . . . . . . . . . . . . . . . . . . . . . . . Explosions 1039 | . . . . . . 285 . . . . . . . . . . . . 183 41 . . . . . . . . . . . . 530 Melee 1133 | . . . . . 753 . . . . . . . 101 . 188 . . . . . . . . . . . . . . . 91 . . Ramming 809 | . 38 22 56 64 . . 55 3 . 48 43 . . 27 31 8 . 9 10 116 . . . . 31 . . . 3 172 . 71 2 Kinetic 50380 | . 909 20 2030 109 . . 2605 1036 19 2461 . 354 326 99 2558 2466 744 1223 445 2091 351 500 . 65 4453 407 307 2023 1119 9368 1724 7856 2712 Thermal 120 | . . . . . 31 . . . . . . . . . . . . 89 . . . . . . . . . . . . . . . Explosive 856 | . . . . . . 285 . . . . . . . . . . . . . 41 . . . . . . . . . . . . 530 Electromagnetic 183 | . . . . . . . . . . . . . . . . . . . 183 . . . . . . . . . . . . . . Impact . | . . . . . . . . . . . . . . . . . . . . . . . . . . . . . . . . . . Slashing 753 | . . . . . 753 . . . . . . . . . . . . . . . . . . . . . . . . . . . . Piercing 289 | . . . . . . . . . . . . . 101 . 188 . . . . . . . . . . . . . . . . . . Highest Corruption 19 | . 2 2 . . . . . . . 9 9 9 9 9 9 9 15 17 . 1 1 1 1 1 1 1 1 1 . 4 14 19 . Average Corruption 6 | . 2 2 . . . . . . . 4 9 9 9 9 6 9 13 11 . 1 1 1 1 1 1 1 1 1 . 3 9 16 . Corruption Purged 17 | . . . . . . . . . . . . . . . . . . 17 . . . . . . . . . . . . . . . Effects 528 | . 3 9 . . . . . . . 72 34 42 18 35 36 36 16 21 . 3 9 2 . . 6 3 1 . . 11 72 99 . Message Errors 154 | . . 3 . . . . . . . 27 12 11 4 5 8 9 9 6 . 1 5 2 . . 3 2 1 . . 1 21 24 . Matter Fused 108 | . . . . . . . . . . 12 8 13 7 12 11 7 4 3 . . . . . . . . . . . 4 14 13 . Heat Flow Errors 59 | . 2 . . . . . . . . 11 3 3 . 6 3 4 1 5 . . . . . . . . . . . 1 6 14 . Energy Discharges 69 | . . 2 . . . . . . . 10 3 6 2 5 5 1 . . . 1 1 . . . 2 . . . . 3 17 11 . Parts Rejected 12 | . . . . . . . . . . . . . . . 1 2 . 1 . . . . . . . . . . . . 1 7 . Data Loss (minor) 67 | . 1 4 . . . . . . . 7 5 6 3 4 5 5 . 2 . 1 3 . . . 1 1 . . . 2 7 10 . Data Loss (major) 13 | . . . . . . . . . . 1 . . . 2 1 2 2 1 . . . . . . . . . . . . 1 3 . Misfires 22 | . . . . . . . . . . 2 3 3 . 1 2 4 . 1 . . . . . . . . . . . . 1 5 . Alerts 4 | . . . . . . . . . . . . . . . . . . . . . . . . . . . . . . . 1 3 . Misdirections 2 | . . . . . . . . . . . . . . . . . . 1 . . . . . . . . . . . . . 1 . Weapon Failures 18 | . . . . . . . . . . 2 . . 2 . . 2 . 1 . . . . . . . . . . . . 3 8 . Overload Shots . | . . . . . . . . . . . . . . . . . . . . . . . . . . . . . . . . . . Overflow Damage 210 | . . . 2 . 22 31 . . . . 10 . . . . . . . 32 20 . . . . . . . . 2 15 . . 76 Projectiles . | . . . . . . . . . . . . . . . . . . . . . . . . . . . . . . . . . . Explosions 139 | . . . . . . 31 . . . . . . . . . . . . 32 . . . . . . . . . . . . . 76 Melee 71 | . . . 2 . 22 . . . . . 10 . . . . . . . . 20 . . . . . . . . 2 15 . . . Knockbacks 24 | . 9 . 1 . . . 11 . . . . . . . . 1 . . . . . . . . . . . . . . . 2 . Impact 5 | . 1 . 1 . . . . . . . . . . . . 1 . . . . . . . . . . . . . . . 2 . Kinetic 17 | . 6 . . . . . 11 . . . . . . . . . . . . . . . . . . . . . . . . . . Secondary 2 | . 2 . . . . . . . . . . . . . . . . . . . . . . . . . . . . . . . . Self-Inflicted Damage 93 | . . . . . . . . . . . . . . . . . . . 93 . . . . . . . . . . . . . . Shots 1 | . . . . . . . . . . . . . . . . . . . 1 . . . . . . . . . . . . . . Rammed 95 | . 12 4 9 11 . . 7 2 . 8 6 . . 2 2 3 . 1 1 8 . . . . 3 . . . 1 9 . 5 1 Targets Rammed 96 | . 12 4 9 11 . . 8 2 . 8 6 . . 2 2 3 . 1 1 8 . . . . 3 . . . 1 9 . 5 1 Kicked . | . . . . . . . . . . . . . . . . . . . . . . . . . . . . . . . . . . Crushed 1 | . . . . . . . 1 . . . . . . . . . . . . . . . . . . . . . . . . . . Highest Temperature 285 | . 206 . 16 . . . 7 . . 248 175 237 . 203 248 182 160 285 9 112 104 104 . 6 6 . . 14 58 127 228 248 . Average Temperature 60 | . 74 . 10 . . . 1 . . 68 78 102 . 97 57 56 40 80 9 53 52 45 . 4 4 . . 7 22 45 29 72 . Received Heat Transfer 2881 | . 156 . 204 . . . 435 108 . 144 12 . 12 . 372 153 . 9 36 81 . 9 . 9 81 . . 66 169 448 27 206 144 Effects 2 | . . . . . . . . . . . . . . . . . . . . . . . . . . . . . . . 2 . . Interference 2 | . . . . . . . . . . . . . . . . . . . . . . . . . . . . . . . 2 . . Siege Activations 101 | . . . . . . . . . . 1 . 1 2 . 10 9 2 1 2 10 2 2 . 1 15 2 . 5 3 13 4 14 2 Total Turns 1284 | . . . . . . . . . . 5 . 24 129 . 110 77 11 6 18 120 9 7 . 4 187 12 . 37 30 202 54 219 23 Longest Duration 87 | . . . . . . . . . . 5 . 24 87 . 38 19 10 6 11 39 6 6 . 4 48 8 . 11 17 42 25 64 17 Robots Corrupted . | . . . . . . . . . . . . . . . . . . . . . . . . . . . . . . . . . . Combat Hostiles . | . . . . . . . . . . . . . . . . . . . . . . . . . . . . . . . . . . Parts Fried 1 | . . . . . . . . . . . . . . . . . . . . . . . . . . . . . . 1 . . . Impact Corruptions 7 | . . . 1 . . . . . . . 3 . . . . . . . . 1 . . . . . . . . 1 1 . . . Robots Melted . | . . . . . . . . . . . . . . . . . . . . . . . . . . . . . . . . . . Combat Hostiles . | . . . . . . . . . . . . . . . . . . . . . . . . . . . . . . . . . . Parts Melted 2 | . . . . 1 . . . . . . . . . . . . . 1 . . . . . . . . . . . . . . . Heat Transferred 323 | . . . . . 27 . . . . . . . . . . . . 296 . . . . . . . . . . . . . . . Parts Sabotaged . | . . . . . . . . . . . . . . . . . . . . . . . . . . . . . . . . . . Parts Stolen . | . . . . . . . . . . . . . . . . . . . . . . . . . . . . . . . . . . Parts Stripped . | . . . . . . . . . . . . . . . . . . . . . . . . . . . . . . . . . . Power Chain Reactions . | . . . . . . . . . . . . . . . . . . . . . . . . . . . . . . . . . . Missiles Intercepted . | . . . . . . . . . . . . . . . . . . . . . . . . . . . . . . . . . . Alert | -11 -10 -10 -9 -9 -9 -8 -8 -7 -7 -7 -7 -7 -7 -6 -6 -6 -6 -6 -6 -5 -5 -5 -5 -4 -4 -4 -4 -4 -3 -3 -3 -3 -2 ------- Run | Scr Mat Min Mat Min Exi Min Mat Fac Was Fac Low Low Dat Pro Fac Ext Cet Arc Hub Fac Upp Upp Zhi Pro Fac Upp Upp War Pro Res Qua Sec Res Peak Influence 988 | . 261 101 532 206 . 110 458 434 73 205 . . . . 276 416 428 301 307 476 . . . . 658 . . . . 988 570 643 902 Initial 555 | . . 101 . 80 . . . 207 73 . . . . . . 101 64 91 35 149 . . . . . . . . . 16 555 81 361 Average 178 | . 133 32 201 47 . 2 245 276 40 68 . . . . 77 234 241 183 79 238 . . . . 299 . . . . 381 137 321 411 Maximum Alert Level 3 | . 1 . 2 1 . . 2 2 . 1 . . . . 1 2 2 1 1 2 . . . . 2 . . . . 3 2 2 3 Low Security (%) 63 | 100 73 100 51 97 . 100 42 4 100 95 . . . . 83 40 40 53 98 37 . . . . 32 . . . . 47 81 32 . Level 1 25 | . 26 . 40 2 . . 49 92 . 4 . . . . 16 56 40 46 1 51 . . . . 41 . . . . 10 7 30 64 Level 2 8 | . . . 8 . . . 8 3 . . . . . . . 2 18 . . 10 . . . . 25 . . . . 6 11 37 26 Level 3 2 | . . . . . . . . . . . . . . . . . . . . . . . . . . . . . . 34 . . 8 Level 4 . | . . . . . . . . . . . . . . . . . . . . . . . . . . . . . . . . . . Level 5 . | . . . . . . . . . . . . . . . . . . . . . . . . . . . . . . . . . . High Security . | . . . . . . . . . . . . . . . . . . . . . . . . . . . . . . . . . . Max Security . | . . . . . . . . . . . . . . . . . . . . . . . . . . . . . . . . . . Squads Dispatched 79 | . 3 . 3 . . . 7 4 . 8 . . . . 6 2 . . . 8 . . . . 9 . . . . 8 5 10 6 Investigation 15 | . 3 . 1 . . . 2 1 . 1 . . . . 1 1 . . . 2 . . . . 1 . . . . . 1 . 1 Extermination 29 | . . . . . . . . 1 . 6 . . . . 4 . . . . 2 . . . . 3 . . . . 3 4 4 2 Reinforcement 24 | . . . 2 . . . 3 2 . 1 . . . . 1 1 . . . 4 . . . . 5 . . . . 2 . 2 1 Assault 5 | . . . . . . . . . . . . . . . . . . . . . . . . . . . . . . 3 . 1 1 Garrison 3 | . . . . . . . 2 . . . . . . . . . . . . . . . . . . . . . . . . . 1 Intercept 3 | . . . . . . . . . . . . . . . . . . . . . . . . . . . . . . . . 3 . Construction Impeded 2 | . . . . . . . 1 . . . . . . . . . . . . 1 . . . . . . . . . . . . . Haulers Reinforced 7 | . . . . . . . . 2 . 1 . . . . 1 . . . . 1 . . . . 1 . . . . 1 . . . Active Scanning Responses . | . . . . . . . . . . . . . . . . . . . . . . . . . . . . . . . . . . Cargo Convoy Interrupts 2 | . . . . . . . . . . . . . . . 1 . . . . 1 . . . . . . . . . . . . . Stealth | -11 -10 -10 -9 -9 -9 -8 -8 -7 -7 -7 -7 -7 -7 -6 -6 -6 -6 -6 -6 -5 -5 -5 -5 -4 -4 -4 -4 -4 -3 -3 -3 -3 -2 --------- Run | Scr Mat Min Mat Min Exi Min Mat Fac Was Fac Low Low Dat Pro Fac Ext Cet Arc Hub Fac Upp Upp Zhi Pro Fac Upp Upp War Pro Res Qua Sec Res Distress Signals 19 | . 1 . 2 1 . . 1 2 . 1 . . . . 3 2 2 . . . . . . . . . . . . 1 . 2 1 Communications Jammed 120 | . . . . . . . . . . . . . . . . . . . . . . . . . 4 . . . . 59 . 36 21 Distress Signals 117 | . . . . . . . . . . . . . . . . . . . . . . . . . 4 . . . . 59 . 36 18 Times Spotted 555 | . 23 1 32 6 1 1 46 14 . 22 2 4 4 . 19 35 9 26 2 17 6 6 . 1 36 4 . 79 10 63 13 50 23 Peak Tracking Total 13 | . 5 . 6 3 2 4 4 4 . 4 1 4 2 . 4 6 5 2 1 4 4 4 . 1 4 2 . 13 5 8 4 5 7 Tactical Retreats 26 | . 1 . 2 . . . 8 . . . 1 . . . 1 1 . . . 1 . . . . 4 . . 3 1 3 . . . Traps | -11 -10 -10 -9 -9 -9 -8 -8 -7 -7 -7 -7 -7 -7 -6 -6 -6 -6 -6 -6 -5 -5 -5 -5 -4 -4 -4 -4 -4 -3 -3 -3 -3 -2 ------- Run | Scr Mat Min Mat Min Exi Min Mat Fac Was Fac Low Low Dat Pro Fac Ext Cet Arc Hub Fac Upp Upp Zhi Pro Fac Upp Upp War Pro Res Qua Sec Res Traps Triggered 18 | . 2 . 1 . . . . 1 . 2 . . . . 1 . . . . . . . . . 3 . . . . 4 2 2 . Indirectly . | . . . . . . . . . . . . . . . . . . . . . . . . . . . . . . . . . . Trap Hack Attempts . | . . . . . . . . . . . . . . . . . . . . . . . . . . . . . . . . . . Triggered . | . . . . . . . . . . . . . . . . . . . . . . . . . . . . . . . . . . Disarmed . | . . . . . . . . . . . . . . . . . . . . . . . . . . . . . . . . . . Reprogrammed . | . . . . . . . . . . . . . . . . . . . . . . . . . . . . . . . . . . Reused 3 | . . . . . . . . . . . . . . . 3 . . . . . . . . . . . . . . . . . . Traps Extracted . | . . . . . . . . . . . . . . . . . . . . . . . . . . . . . . . . . . Installed 3 | . . . . . . . . . . . . . . . 3 . . . . . . . . . . . . . . . . . . Triggered 22 | . . . . . . . . . . . . . . . 3 . . . . 1 . 1 . . . . . 17 . . . . . Exploded 1 | . . . . . 1 . . . . . . . . . . . . . . . . . . . . . . . . . . . . Machines | -11 -10 -10 -9 -9 -9 -8 -8 -7 -7 -7 -7 -7 -7 -6 -6 -6 -6 -6 -6 -5 -5 -5 -5 -4 -4 -4 -4 -4 -3 -3 -3 -3 -2 ---------- Run | Scr Mat Min Mat Min Exi Min Mat Fac Was Fac Low Low Dat Pro Fac Ext Cet Arc Hub Fac Upp Upp Zhi Pro Fac Upp Upp War Pro Res Qua Sec Res Machines Disabled 77 | . 1 . 1 . . . 6 5 . . . . 1 . 2 1 3 5 6 4 . . . . 9 . . . . 4 7 19 3 Max in Single Turn 5 | . 1 . 1 . . . 1 4 . . . . 1 . 1 1 1 1 5 1 . . . . 2 . . . . 1 1 1 1 Garrison Access 4 | . . . . . . . 1 . . . . . . . . . . . . . . . . . 1 . . . . . . 1 1 Network Hub 1 | . . . . . . . . . . . . . . . . . . . 1 . . . . . . . . . . . . . . Machines Sabotaged . | . . . . . . . . . . . . . . . . . . . . . . . . . . . . . . . . . . Garrisons Compromised 2 | . . . . . . . . . . 1 . . . . . . . . . 1 . . . . . . . . . . . . . Overloaded Fab Kills . | . . . . . . . . . . . . . . . . . . . . . . . . . . . . . . . . . . Hacking | -11 -10 -10 -9 -9 -9 -8 -8 -7 -7 -7 -7 -7 -7 -6 -6 -6 -6 -6 -6 -5 -5 -5 -5 -4 -4 -4 -4 -4 -3 -3 -3 -3 -2 --------- Run | Scr Mat Min Mat Min Exi Min Mat Fac Was Fac Low Low Dat Pro Fac Ext Cet Arc Hub Fac Upp Upp Zhi Pro Fac Upp Upp War Pro Res Qua Sec Res Machines Accessed 118 | . 8 . 9 1 2 . 8 2 . 15 1 . 4 . 6 9 1 . 2 5 2 1 4 . 8 1 1 . . 4 10 12 2 Terminals 75 | . 6 . 8 1 . . 4 2 . 10 . . . . 4 9 1 . 2 . 1 . . . 5 1 . . . 3 6 10 2 Fabricators 5 | . . . . . . . . . . 1 . . . . 1 . . . . 2 . . . . 1 . . . . . . . . Repair Stations 9 | . . . 1 . . . 1 . . 1 . . . . 1 . . . . 1 . . . . 1 . . . . . 2 1 . Recycling Units 2 | . 2 . . . . . . . . . . . . . . . . . . . . . . . . . . . . . . . . Scanalyzers 10 | . . . . . . . 2 . . 3 . . . . . . . . . 2 . . . . . . . . . 1 2 . . Garrison Access 3 | . . . . . . . 1 . . . . . . . . . . . . . . . . . 1 . . . . . . 1 . Total Hacks 523 | . 23 . 34 4 5 . 21 4 . 38 1 . 32 . 24 37 1 . 10 36 2 1 17 . 53 1 1 . . 18 83 68 9 Successful 282 | . 14 . 22 3 5 . 12 . . 24 1 . 32 . 14 16 1 . 4 17 2 1 17 . 19 1 1 . . 10 38 24 4 Failed 240 | . 8 . 12 1 . . 9 4 . 14 . . . . 10 21 . . 6 19 . . . . 34 . . . . 8 45 44 5 Catastrophic 38 | . . . 1 . . . 2 . . 4 . . . . 3 5 . . . 3 . . . . 4 . . . . . 7 8 1 Database Lockouts 1 | . 1 . . . . . . . . . . . . . . . . . . . . . . . . . . . . . . . . Manual 183 | . 17 . 17 1 1 . 4 . . 15 . . . . 10 11 1 . 7 . . . . . 26 . . 1 . 5 35 28 4 Terminals 339 | . 21 . 29 4 . . 10 4 . 23 . . . . 20 37 1 . 10 . 1 . . . 42 1 . . . 15 50 62 9 Fabricators 19 | . . . . . . . . . . 6 . . . . 2 . . . . 8 . . . . 3 . . . . . . . . Repair Stations 53 | . . . 5 . . . 3 . . 2 . . . . 2 . . . . 9 . . . . 5 . . . . . 22 5 . Recycling Units 2 | . 2 . . . . . . . . . . . . . . . . . . . . . . . . . . . . . . . . Scanalyzers 47 | . . . . . . . 7 . . 7 . . . . . . . . . 19 . . . . . . . . . 3 11 . . Garrison Access 5 | . . . . . . . 1 . . . . . . . . . . . . . . . . . 3 . . . . . . 1 . Terminal Hacks 169 | . 7 . 12 2 5 . 3 . . 9 1 . 32 . 8 13 1 . 2 . 2 1 17 . 10 1 1 . . 6 18 15 3 Record 22 | . . . . . 4 . . . . . . . 11 . . . . . . . 1 . 5 . . 1 . . . . . . . Part Schematic 23 | . . . 1 . . . . . . . . . 11 . 2 . . . . . . . 4 . 1 . . . . . 4 . . Robot Schematic 7 | . . . . . . . . . . . . . 7 . . . . . . . . . . . . . . . . . . . . Robot Analysis 6 | . 1 . . . . . . . . . . . . . . . . . . . . . 4 . . . . . . . . 1 . Prototype ID Bank 11 | . 1 . . . . . 1 . . . . . 3 . . . . . . . . . 4 . . . . . . . 2 . . Open Door 13 | . . . . . . . . . . . 1 . . . . 5 1 . . . 1 1 . . . . 1 . . 1 . 2 . Open DSF 3 | . . . . . . . . . . 2 . . . . 1 . . . . . . . . . . . . . . . . . . Branch Access Points 7 | . . . 1 . . . 1 . . 1 . . . . 1 . . . . . . . . . 1 . . . . 1 . . 1 Terminal Index 8 | . . . 1 . . . 1 . . 1 . . . . . 1 . . . . . . . . 1 . . . . . 1 1 1 Fabricator Index 1 | . . . . . . . . . . . . . . . . . . . . . . . . . . . . . . 1 . . . Scanalyzer Index 3 | . . . . . . . . . . 1 . . . . . . . . . . . . . . . . . . . . 1 1 . Garrison Index 1 | . . . . . . . . . . . . . . . . . . . . . . . . . . . . . . 1 . . . Alert Level 16 | . 1 . 1 1 . . . . . 1 . . . . . 3 . . 1 . . . . . 2 . . . . 1 3 2 . Unreport Threat 11 | . . . 2 . . . . . . 1 . . . . . 2 . . . . . . . . 1 . . . . . 3 1 1 Locate Traps 4 | . 1 . . . . . . . . . . . . . 1 1 . . . . . . . . 1 . . . . . . . . Hauler Manifests 14 | . 1 . 2 . . . . . . 2 . . . . 1 1 . . 1 . . . . . 2 . . . . 1 2 1 . Registered Prototypes 1 | . 1 . . . . . . . . . . . . . . . . . . . . . . . . . . . . . . . . Zone Layout 17 | . 1 . 4 1 . . . . . . . . . . 2 . . . . . . . . . 1 . . . . . 2 6 . EX-Prototype ID Bank 1 | . . . . . 1 . . . . . . . . . . . . . . . . . . . . . . . . . . . . Fabricator Hacks 11 | . . . . . . . . . . 2 . . . . 2 . . . . 6 . . . . 1 . . . . . . . . Load Schematic 6 | . . . . . . . . . . 1 . . . . 1 . . . . 3 . . . . 1 . . . . . . . . Build 5 | . . . . . . . . . . 1 . . . . 1 . . . . 3 . . . . . . . . . . . . . Repair Station Hacks 28 | . . . 4 . . . 2 . . 2 . . . . 2 . . . . 3 . . . . 3 . . . . . 10 2 . Scan Component 17 | . . . 2 . . . 1 . . 1 . . . . 1 . . . . 3 . . . . 2 . . . . . 6 1 . Repair 11 | . . . 2 . . . 1 . . 1 . . . . 1 . . . . . . . . . 1 . . . . . 4 1 . Recycling Unit Hacks . | . . . . . . . . . . . . . . . . . . . . . . . . . . . . . . . . . . Scanalyzer 24 | . . . . . . . 5 . . 4 . . . . . . . . . 8 . . . . . . . . . 2 5 . . Insert Component 16 | . . . . . . . 3 . . 3 . . . . . . . . . 4 . . . . . . . . . 2 4 . . Analyze 8 | . . . . . . . 2 . . 1 . . . . . . . . . 4 . . . . . . . . . . 1 . . Garrison Access Hacks 3 | . . . . . . . 1 . . . . . . . . . . . . . . . . . 1 . . . . . . 1 . Seal Access 3 | . . . . . . . 1 . . . . . . . . . . . . . . . . . 1 . . . . . . 1 . Unauthorized Hacks 47 | . 7 . 6 1 . . 1 . . 7 . . . . 2 3 . . 2 . . . . . 4 . . . . 2 5 6 1 Terminals 43 | . 5 . 6 1 . . 1 . . 5 . . . . 2 3 . . 2 . . . . . 4 . . . . 2 5 6 1 Track 2 | . . . . 1 . . . . . . . . . . . . . . . . . . . . . . . . . . . 1 . Assimilate 1 | . . . . . . . . . . . . . . . . . . . . . . . . . . . . . . 1 . . . Botnet 39 | . 5 . 6 . . . 1 . . 5 . . . . 1 3 . . 2 . . . . . 4 . . . . 1 5 5 1 Operators 1 | . . . . . . . . . . . . . . . 1 . . . . . . . . . . . . . . . . . . Fabricators 2 | . . . . . . . . . . 2 . . . . . . . . . . . . . . . . . . . . . . . Prioritize 1 | . . . . . . . . . . 1 . . . . . . . . . . . . . . . . . . . . . . . Haulers 1 | . . . . . . . . . . 1 . . . . . . . . . . . . . . . . . . . . . . . Repair Stations . | . . . . . . . . . . . . . . . . . . . . . . . . . . . . . . . . . . Recycling Units 2 | . 2 . . . . . . . . . . . . . . . . . . . . . . . . . . . . . . . . Tunnel 2 | . 2 . . . . . . . . . . . . . . . . . . . . . . . . . . . . . . . . Scanalyzers . | . . . . . . . . . . . . . . . . . . . . . . . . . . . . . . . . . . Garrison Access . | . . . . . . . . . . . . . . . . . . . . . . . . . . . . . . . . . . Data Cores Recovered 2 | . . . . . . . . . . . . . . . . 2 . . . . . . . . . . . . . . . . . Used . | . . . . . . . . . . . . . . . . . . . . . . . . . . . . . . . . . . Hacking Detections 77 | . 6 . 7 . . . 7 2 . 13 . . . . 4 6 . . 1 4 . . . . 7 . . . . 2 7 9 2 Full Trace Events 12 | . . . 1 . . . 2 1 . 1 . . . . 1 1 . . . 2 . . . . 1 . . . . . 1 . 1 Feedback Events . | . . . . . . . . . . . . . . . . . . . . . . . . . . . . . . . . . . Feedback Blocked . | . . . . . . . . . . . . . . . . . . . . . . . . . . . . . . . . . . Robot Schematics Acquired 7 | . . . . . . . . . . . . . 7 . . . . . . . . . . . . . . . . . . . . Robots Built . | . . . . . . . . . . . . . . . . . . . . . . . . . . . . . . . . . . Authchips . | . . . . . . . . . . . . . . . . . . . . . . . . . . . . . . . . . . Time . | . . . . . . . . . . . . . . . . . . . . . . . . . . . . . . . . . . Total Robot Build Rating . | . . . . . . . . . . . . . . . . . . . . . . . . . . . . . . . . . . Part Schematics Acquired 28 | . . . 1 . . . 1 . . 1 . . 11 . 2 . . . . 2 . . 4 . 1 . . . . . 5 . . Parts Built 9 | . . . . . . . . . . 2 . . . . 2 . . . . 5 . . . . . . . . . . . . . Authchips 1 | . . . . . . . . . . 1 . . . . . . . . . . . . . . . . . . . . . . . Time 495 | . . . . . . . . . . 106 . . . . 95 . . . . 294 . . . . . . . . . . . . . Total Part Build Rating 47 | . . . . . . . . . . 12 . . . . 10 . . . . 25 . . . . . . . . . . . . . Parts Repaired 11 | . . . 2 . . . 1 . . 1 . . . . 1 . . . . . . . . . 1 . . . . . 4 1 . Time 421 | . . . 52 . . . 26 . . 56 . . . . 47 . . . . . . . . . 41 . . . . . 163 36 . Parts Recycled . | . . . . . . . . . . . . . . . . . . . . . . . . . . . . . . . . . . Recycled Matter . | . . . . . . . . . . . . . . . . . . . . . . . . . . . . . . . . . . Retrieved Matter . | . . . . . . . . . . . . . . . . . . . . . . . . . . . . . . . . . . Retrieved Components . | . . . . . . . . . . . . . . . . . . . . . . . . . . . . . . . . . . Parts Scanalyzed 7 | . . . . . . . 3 . . 1 . . . . . . . . . 2 . . . . . . . . . . 1 . . Part Schematics Acquired 5 | . . . . . . . 1 . . 1 . . . . . . . . . 2 . . . . . . . . . . 1 . . Parts Damaged . | . . . . . . . . . . . . . . . . . . . . . . . . . . . . . . . . . . Bothacking | -11 -10 -10 -9 -9 -9 -8 -8 -7 -7 -7 -7 -7 -7 -6 -6 -6 -6 -6 -6 -5 -5 -5 -5 -4 -4 -4 -4 -4 -3 -3 -3 -3 -2 ------------ Run | Scr Mat Min Mat Min Exi Min Mat Fac Was Fac Low Low Dat Pro Fac Ext Cet Arc Hub Fac Upp Upp Zhi Pro Fac Upp Upp War Pro Res Qua Sec Res Used RIF Installer . | . . . . . . . . . . . . . . . . . . . . . . . . . . . . . . . . . . Robots Hacked . | . . . . . . . . . . . . . . . . . . . . . . . . . . . . . . . . . . Non-combat . | . . . . . . . . . . . . . . . . . . . . . . . . . . . . . . . . . . Combat . | . . . . . . . . . . . . . . . . . . . . . . . . . . . . . . . . . . Robot Hacks Applied . | . . . . . . . . . . . . . . . . . . . . . . . . . . . . . . . . . . Relay Couplers Released 3 | . . . . . . . . . . . . . . . . . . . . . . . . . . . . . . . . . 3 Machine Destruction 3 | . . . . . . . . . . . . . . . . . . . . . . . . . . . . . . . . . 3 Robots Rewired 12 | . . . . . . . . . . . . . . . . 9 . . . . . . . . . . . 3 . . . . . Allies Hacked . | . . . . . . . . . . . . . . . . . . . . . . . . . . . . . . . . . . Hacks Repelled . | . . . . . . . . . . . . . . . . . . . . . . . . . . . . . . . . . . Allies | -11 -10 -10 -9 -9 -9 -8 -8 -7 -7 -7 -7 -7 -7 -6 -6 -6 -6 -6 -6 -5 -5 -5 -5 -4 -4 -4 -4 -4 -3 -3 -3 -3 -2 -------- Run | Scr Mat Min Mat Min Exi Min Mat Fac Was Fac Low Low Dat Pro Fac Ext Cet Arc Hub Fac Upp Upp Zhi Pro Fac Upp Upp War Pro Res Qua Sec Res Total Allies 24 | . . . . 1 . . . . . . . . . . . 15 1 . . . . . . . . . . 3 . 1 3 . . Largest Group 6 | . . . . 1 . . . . . . . . . . . 6 4 3 1 . . . . . . . . 3 . 1 3 . . Highest-Rated Group 266 | . . . . 31 . . . . . . . . . . . 264 266 266 28 . . . . . . . . 198 . 45 138 . . Highest-Rated Ally 159 | . . . . 31 . . . . . . . . . . . 159 159 143 28 . . . . . . . . 68 . 45 46 . . Total Orders 5 | . . . . . . . . . . . . . . . . . . . . . . . . . . . . 5 . . . . . STAY 1 | . . . . . . . . . . . . . . . . . . . . . . . . . . . . 1 . . . . . FOLLOW 1 | . . . . . . . . . . . . . . . . . . . . . . . . . . . . 1 . . . . . AID 3 | . . . . . . . . . . . . . . . . . . . . . . . . . . . . 3 . . . . . Ally Attacks 135 | . . . . 4 . . . . . . . . . . . 51 46 19 . . . . . . . . . 4 . . 11 . . Total Damage 3307 | . . . . 41 . . . . . . . . . . . 1002 1219 416 . . . . . . . . . 351 . . 278 . . Kills 16 | . . . . 1 . . . . . . . . . . . 8 5 1 . . . . . . . . . 1 . . . . . Allies Corrupted 1 | . . . . . . . . . . . . . . . . . . . 1 . . . . . . . . . . . . . . Allies Melted 1 | . . . . . . . . . . . . . . . . 1 . . . . . . . . . . . . . . . . . Intel | -11 -10 -10 -9 -9 -9 -8 -8 -7 -7 -7 -7 -7 -7 -6 -6 -6 -6 -6 -6 -5 -5 -5 -5 -4 -4 -4 -4 -4 -3 -3 -3 -3 -2 ------- Run | Scr Mat Min Mat Min Exi Min Mat Fac Was Fac Low Low Dat Pro Fac Ext Cet Arc Hub Fac Upp Upp Zhi Pro Fac Upp Upp War Pro Res Qua Sec Res Robot Analysis Total 6 | . 1 . . . . . . . . . . . . . . . . . . . . . 4 . . . . . . . . 1 . Derelict Logs Recovered 10 | . . 2 . 2 . . . . . . 1 1 . 2 . . . . . . 1 . . 1 . . . . . . . . . Drone Launches . | . . . . . . . . . . . . . . . . . . . . . . . . . . . . . . . . . . Drone Recoveries . | . . . . . . . . . . . . . . . . . . . . . . . . . . . . . . . . . . Exploration | -11 -10 -10 -9 -9 -9 -8 -8 -7 -7 -7 -7 -7 -7 -6 -6 -6 -6 -6 -6 -5 -5 -5 -5 -4 -4 -4 -4 -4 -3 -3 -3 -3 -2 ------------- Run | Scr Mat Min Mat Min Exi Min Mat Fac Was Fac Low Low Dat Pro Fac Ext Cet Arc Hub Fac Upp Upp Zhi Pro Fac Upp Upp War Pro Res Qua Sec Res Turns Passed 38095 | 76 1157 1253 1590 1113 897 508 1969 878 714 4742 1008 1362 469 1024 1790 1067 446 676 377 1437 1170 452 243 532 1860 619 453 1408 465 1698 2017 2277 348 Spaces Moved 15837 | 52 570 478 610 440 351 209 640 290 293 1803 407 525 120 362 800 428 201 177 192 581 705 249 143 312 744 350 270 644 248 639 985 879 140 Core 22 | 22 . . . . . . . . . . . . . . . . . . . . . . . . . . . . . . . . . Treads 15815 | 30 570 478 610 440 351 209 640 290 293 1803 407 525 120 362 800 428 201 177 192 581 705 249 143 312 744 350 270 644 248 639 985 879 140 Legs . | . . . . . . . . . . . . . . . . . . . . . . . . . . . . . . . . . . Wheels . | . . . . . . . . . . . . . . . . . . . . . . . . . . . . . . . . . . Hover . | . . . . . . . . . . . . . . . . . . . . . . . . . . . . . . . . . . Flight . | . . . . . . . . . . . . . . . . . . . . . . . . . . . . . . . . . . Fastest Speed 50 | 50 160 160 160 240 240 240 235 235 232 232 240 240 240 240 160 160 160 160 160 160 160 160 160 160 160 160 160 160 160 152 152 160 163 Average Speed 191 | 131 160 248 185 240 240 240 239 235 234 236 240 240 240 240 160 160 160 160 160 160 160 160 160 160 160 160 160 160 160 160 172 164 182 Slowest Speed 320 | 160 160 320 320 240 240 240 240 235 235 240 240 240 240 240 160 160 160 160 160 160 160 160 160 160 160 160 160 160 160 232 240 240 240 Overloaded Moves . | . . . . . . . . . . . . . . . . . . . . . . . . . . . . . . . . . . Propulsion Burnouts . | . . . . . . . . . . . . . . . . . . . . . . . . . . . . . . . . . . Robots Hopped . | . . . . . . . . . . . . . . . . . . . . . . . . . . . . . . . . . . Cave-ins Triggered . | . . . . . . . . . . . . . . . . . . . . . . . . . . . . . . . . . . Teleports 3 | . . . . . . . . . . . . . . . . . . . . . . . . . . . . . . 1 . 1 1 Exploration Rate (%) 54 | 5 97 91 66 83 70 49 56 9 96 41 61 65 81 62 15 66 65 84 28 14 80 40 60 56 25 56 45 72 49 26 75 66 7 Regions Visited 33 Branch Regions 22 Pre-discovered Areas 9 | . 2 1 . . 1 . . . . . . . 1 . . . . . . . . . 3 1 . . . . . . . . . Known Exits Taken 23 | . . . 1 . . . 1 . . 1 1 1 1 1 1 1 1 1 1 1 1 1 1 1 1 1 1 . . 1 1 1 . Unknown Exits Taken 8 | 1 1 1 . 1 1 1 . . . . . . . . . . . . . . . . . . . . . 1 1 . . . . Scrap Searched 18 | . . 1 . 1 . . . . . . 1 4 . 1 . . . . . . 2 2 . . . 3 2 . 1 . . . . Spaces Dug 90 | . . . . . . . . . . 10 . . . . 3 11 . . . . 4 2 . 4 25 . . . . 24 2 5 . Terrain Destroyed 612 | . . . . . . 26 2 7 1 12 . 1 4 . 3 19 3 22 170 48 9 14 . 5 57 1 5 30 13 95 11 41 13 Melee 20 | . . . . . . . . . . 10 . . . . 3 1 . . . . . . . . 6 . . . . . . . . Projectile 348 | . . . . . . . 2 4 1 2 . 1 3 . . 16 3 22 13 21 9 13 . 4 47 1 5 23 13 93 11 37 4 AOE 217 | . . . . . . 26 . . . . . . . . . . . . 157 26 . . . . . . . . . . . . 8 Terrain Rammed . | . . . . . . . . . . . . . . . . . . . . . . . . . . . . . . . . . . Walls Destroyed . | . . . . . . . . . . . . . . . . . . . . . . . . . . . . . . . . . . Machines Disabled . | . . . . . . . . . . . . . . . . . . . . . . . . . . . . . . . . . . Actions | -11 -10 -10 -9 -9 -9 -8 -8 -7 -7 -7 -7 -7 -7 -6 -6 -6 -6 -6 -6 -5 -5 -5 -5 -4 -4 -4 -4 -4 -3 -3 -3 -3 -2 --------- Run | Scr Mat Min Mat Min Exi Min Mat Fac Was Fac Low Low Dat Pro Fac Ext Cet Arc Hub Fac Upp Upp Zhi Pro Fac Upp Upp War Pro Res Qua Sec Res Total 21686 | 57 708 538 910 470 385 213 915 417 323 2214 431 614 277 512 1210 710 297 515 243 1032 734 280 158 337 1268 397 285 932 291 1088 1254 1476 195 Wait 3505 | . 51 47 155 14 1 1 114 71 7 252 17 70 118 146 256 114 44 285 38 379 12 10 . 12 342 29 2 163 25 237 157 316 20 Move 15806 | 51 569 477 609 439 350 208 639 290 292 1802 406 524 119 361 799 427 200 176 191 580 704 248 142 311 743 349 269 643 247 638 984 879 140 Hop . | . . . . . . . . . . . . . . . . . . . . . . . . . . . . . . . . . . Pick Up 220 | . 17 5 13 . 4 . 16 3 5 11 1 1 3 . 21 3 6 2 1 10 1 4 1 . 14 3 1 6 1 17 21 24 5 Fast Attach 131 | 6 1 . 7 . 3 . 10 1 4 11 . . 4 . 6 3 5 6 . . . . 7 . 7 . 2 8 . 7 12 19 2 Attach 95 | . . . 4 . 2 . 4 2 1 1 . . 3 . 9 1 . . . 2 2 2 . . 6 2 . 3 2 16 5 25 3 Detach 10 | . . . . . 1 . . . . . . . 2 . . . . . . . . . 1 . . . . . . . 2 4 . Swap 344 | . 4 1 14 . 4 2 16 8 2 29 . 8 3 . 32 24 17 6 2 15 3 1 . . 29 6 2 14 . 27 14 60 1 Drop 252 | . 4 2 25 . 3 . 20 3 11 26 1 2 7 . 21 7 11 7 1 8 1 1 7 . 15 2 4 12 . 8 23 19 1 Fire 1073 | . 50 2 74 6 3 2 88 37 1 62 . 9 12 3 51 60 14 32 9 30 11 14 . 14 101 6 4 53 15 129 33 126 22 Melee 52 | . . . . . 14 . . . . 10 . . 6 . 10 1 . . . . . . . . 8 . . . . . 3 . . Ram . | . . . . . . . . . . . . . . . . . . . . . . . . . . . . . . . . . . Kick . | . . . . . . . . . . . . . . . . . . . . . . . . . . . . . . . . . . Crush 95 | . 12 4 9 11 . . 8 2 . 8 6 . . 2 2 3 . 1 1 8 . . . . 3 . . . 1 9 . 4 1 Escape Stasis 2 | . . . . . . . . . . 2 . . . . . . . . . . . . . . . . . . . . . . . Rewire 98 | . . . . . . . . . . . . . . . . 67 . . . . . . . . . . 1 30 . . . . . Trap 3 | . . . . . . . . . . . . . . . 3 . . . . . . . . . . . . . . . . . . Miscellaneous . | . . . . . . . . . . . . . . . . . . . . . . . . . . . . . . . . . . Route ------- -11/Scrapyard -10/Materials (discovered 4 exits: *Mat x3 / [*Min]) -10/Mines -9/Materials (discovered 3 exits: *Mat / *Min x2) -9/Mines (discovered 2 exits: *Mat / *Exi) -9/Exiles -8/Mines -8/Materials (discovered 2 exits: *Fac x2) -7/Factory -7/Waste -7/Factory (discovered 7 exits: *Fac x3 / *Sto x2 / *Low x2) -7/Lower Caves -7/Lower Caves -7/Data Miner -6/Proximity Caves -6/Factory (discovered 4 exits: Low x2 / *Ext x2) -6/Extension (discovered 2 exits: *Fac / *Cet) -6/Cetus (discovered 2 exits: *Fac / *Arc) -6/Archives (discovered 3 exits: *Fac / *Hub x2) -6/Hub_04(d) (discovered 2 exits: *Fac x2) -5/Factory (discovered 2 exits: *Fac / *Upp) -5/Upper Caves -5/Upper Caves -5/Zhirov -4/Proximity Caves -4/Factory (discovered 3 exits: *Upp x2 / Arm) -4/Upper Caves -4/Upper Caves -4/Warlord -3/Proximity Caves -3/Research (discovered 3 exits: *Res / *Qua x2) -3/Quarantine (discovered 2 exits: *Res / *Sec) -3/Section 7 -2/Research (discovered 2 exits: Tes x2) History --------- Turn | Location | Event 37 | -11/Scrapyard | Discovered new exit (range 16) 77 | -11/Scrapyard | Entered Materials 154 | -10/Materials | Central database locked down 213 | -10/Materials | Discovered new exit (range 16) 312 | -10/Materials | Build established: Mutant 441 | -10/Materials | Discovered new exit (range 10) 778 | -10/Materials | Discovered new exit (range 8) 1114 | -10/Materials | Discovered new exit (range 9) 1234 | -10/Materials | Entered Mines 1320 | -10/Mines | Assembled infested the area 1410 | -10/Mines | Learned location of Zion (-6) 1462 | -10/Mines | Received a Rocket Launcher from a helpful Derelict 1473 | -10/Mines | Core integrity fell below 50% 1487 | -10/Mines | Discovered new exit (range 16) 1635 | -10/Mines | Found a hidden stash of uninstalled traps 2378 | -10/Mines | Learned Materials emergency access door positions 2487 | -10/Mines | Entered Materials 2487 | -9/Materials | Evolved 2 slots: Utility x1, Weapon x1 2535 | -9/Materials | Identified exit to Mines 2762 | -9/Materials | Repaired Lgt. Treads 2790 | -9/Materials | Repaired Lgt. Treads 3027 | -9/Materials | Build established: Tank 3265 | -9/Materials | Discovered new exit (range 16) 3551 | -9/Materials | Build established: Scavenger-Tank 4077 | -9/Materials | Entered Mines 4080 | -9/Mines | Received a Mining Laser from a helpful Derelict 4161 | -9/Mines | Learned location of 1 exit from Materials 4633 | -9/Mines | Discovered new exit (range 5) 4904 | -9/Mines | Learned Materials emergency access door positions 5180 | -9/Mines | Deemed a non-threat by the Exiles lab entrance 5180 | -9/Mines | Discovered new exit (range 5) 5190 | -9/Mines | Entered Exiles 5248 | -9/Exiles | Met 8R-AWN 5291 | -9/Exiles | Met EX-HEX 5397 | -9/Exiles | Met EX-DEC 5660 | -9/Exiles | Met EX-BIN 5689 | -9/Exiles | Aligned with FarCom system 5691 | -9/Exiles | Given EX-Vault access code 5746 | -9/Exiles | Opened EX-Vault 5766 | -9/Exiles | Found Longsword +1 5820 | -9/Exiles | Warned to stay clear of 0b10 Research branches 5845 | -9/Exiles | Exiles lab attacked by MAIN.C 5981 | -9/Exiles | Discovered new exit (range 14) 6011 | -9/Exiles | Attacked by the Exiles 6049 | -9/Exiles | Destroyed 8R-AWN 6057 | -9/Exiles | Found Prototype Ballistic Gun 6057 | -9/Exiles | Identified 8R-AWN's Boregun 6061 | -9/Exiles | Found 8R-AWN's Boregun 6070 | -9/Exiles | Found Prototype Processor 6080 | -9/Exiles | Lost 4 parts (2u2w) 6087 | -9/Exiles | Entered Mines 6532 | -8/Mines | Discovered new exit (range 8) 6595 | -8/Mines | Entered Materials 6595 | -8/Materials | Evolved 2 slots: Propulsion x1, Utility x1 6596 | -8/Materials | Identified exit to Factory 6613 | -8/Materials | Identified Exp. Targeting Computer 6679 | -8/Materials | Garrison activated, responded to threat 6947 | -8/Materials | Repaired Lgt. Treads 8044 | -8/Materials | Discovered exit to Factory (range 5) 8564 | -8/Materials | Entered Factory 8564 | -7/Factory | Evolved 2 slots: Utility x2 8944 | -7/Factory | Build established: Scavenger-Mutant 9442 | -7/Factory | Sucked down chute 9442 | -7/Factory | Entered Waste 9442 | -7/Waste | The area was eerily silent 10013 | -7/Waste | Discovered new exit (range 12) 10154 | -7/Waste | Identified exit to Factory 10156 | -7/Waste | Entered Factory 10675 | -7/Factory | Build established: Scavenger-Skirmisher 11144 | -7/Factory | Discovered new exit (range 11) 11224 | -7/Factory | Identified exit to Factory 11383 | -7/Factory | Repaired Hvy. Treads 11397 | -7/Factory | Discovered exit to Factory (range 7) 11551 | -7/Factory | Discovered new exit (range 12) 11581 | -7/Factory | Identified exit to Storage 11928 | -7/Factory | Identified exit to Lower Caves 12478 | -7/Factory | Fabricated Hvy. Treads (x2) 13185 | -7/Factory | Found Prototype Launcher 13185 | -7/Factory | Identified Rocket Array 13196 | -7/Factory | Found Rocket Array 13483 | -7/Factory | Discovered exit to Factory (range 12) 14088 | -7/Factory | Build established: Scavenger-Mutant 14898 | -7/Factory | Entered Lower Caves 14922 | -7/Lower Caves | Encountered a Warlord checkpoint 14989 | -7/Lower Caves | Build established: Scavenger-Skirmisher 15571 | -7/Lower Caves | Identified exit to Lower Caves 15737 | -7/Lower Caves | Spotted B-75 Beast 15906 | -7/Lower Caves | Entered another Lower Caves area 17216 | -7/Lower Caves | Learned Factory trap positions 17221 | -7/Lower Caves | Discovered new exit (range 7) 17264 | -7/Lower Caves | Identified exit to Data Miner 17268 | -7/Lower Caves | Entered Data Miner 17268 | -7/Data Miner | Discovered new exit (range 7) 17316 | -7/Data Miner | Met Data Miner 17364 | -7/Data Miner | Learned location of Section 7 (-3) 17364 | -7/Data Miner | Acquired the access code to Warlord's prototype stash 17400 | -7/Data Miner | Received God Mode back door access code from Data Miner 17437 | -7/Data Miner | Destroyed Data Miner 17439 | -7/Data Miner | Found Prototype Hackware 17440 | -7/Data Miner | Data Conduit disabled 17583 | -7/Data Miner | Build established: Scavenger-Mutant 17734 | -7/Data Miner | Identified exit to Proximity Caves 17737 | -7/Data Miner | Entered Proximity Caves 18017 | -6/Proximity Caves | Build established: Scavenger-Skirmisher 18107 | -6/Proximity Caves | Learned Factory interactive machine intel 18670 | -6/Proximity Caves | Discovered exit to Factory (range 8) 18761 | -6/Proximity Caves | Entered Factory 18761 | -6/Factory | Evolved 2 slots: Propulsion x1, Utility x1 18762 | -6/Factory | Loaded intel: 89 trap records 18763 | -6/Factory | Loaded intel: 54 interactive machine locations 18764 | -6/Factory | Identified Quantum Router 18834 | -6/Factory | Identified exit to Lower Caves 18834 | -6/Factory | Identified exit to Extension 18900 | -6/Factory | Repaired Broken Adv. Weapon Cycler? 19184 | -6/Factory | Fabricated Hyp. Gauss Rifle? 19686 | -6/Factory | Cargo convoy interrupted 19794 | -6/Factory | Found Prototype Processor 19825 | -6/Factory | Found Prototype Launcher 19826 | -6/Factory | Identified Com. Tesla Bomb Launcher 19851 | -6/Factory | Found Prototype Processor 20270 | -6/Factory | Spotted B-75 Beast 20551 | -6/Factory | Entered Extension 20614 | -6/Extension | Rescued a captive Derelict 21101 | -6/Extension | Disrupted transfer network 21138 | -6/Extension | Rescued a captive Derelict 21294 | -6/Extension | Rescued a captive Derelict 21462 | -6/Extension | Rescued a captive Derelict 21462 | -6/Extension | Rescued a captive Derelict 21530 | -6/Extension | Rescued A7 21594 | -6/Extension | Discovered new exit (range 10) 21595 | -6/Extension | Discovered new exit (range 6) 21615 | -6/Extension | Identified exit to Cetus 21618 | -6/Extension | Entered Cetus 21618 | -6/Cetus | Accompanied by 4 allies (A7) 21623 | -6/Cetus | Acquired a Cetus Manufacturing Module code from A7 21662 | -6/Cetus | Spotted Cetus Guard 21662 | -6/Cetus | Destroyed Cetus Guard 21664 | -6/Cetus | Spotted Cetus Guard 21669 | -6/Cetus | Spotted Cetus Guard 21669 | -6/Cetus | Spotted Cetus Guard 21672 | -6/Cetus | Allies destroyed Cetus Guard 21672 | -6/Cetus | Destroyed Cetus Guard 21675 | -6/Cetus | Destroyed Cetus Guard 21718 | -6/Cetus | System corruption reached 10% 21771 | -6/Cetus | Started Cetus Manufacturing Module 21783 | -6/Cetus | Escorted A7 to Cetus Mainframe 21796 | -6/Cetus | Manufactured an Enhanced Grunt 21800 | -6/Cetus | Cetus Manufacturing Module disabled 21886 | -6/Cetus | Discovered new exit (range 16) 21922 | -6/Cetus | Spotted Cetus Guard 21922 | -6/Cetus | Spotted Cetus Guard 21926 | -6/Cetus | Destroyed Cetus Guard 21927 | -6/Cetus | Allies destroyed Cetus Guard 21927 | -6/Cetus | Spotted Cetus Guard 21927 | -6/Cetus | Spotted Cetus Guard 21934 | -6/Cetus | Allies destroyed Cetus Guard 21936 | -6/Cetus | Destroyed Cetus Guard 21956 | -6/Cetus | Discovered new exit (range 15) 21973 | -6/Cetus | Met Revision 17 21974 | -6/Cetus | Destroyed Revision 17 22058 | -6/Cetus | Identified exit to Archives 22064 | -6/Cetus | Entered Archives 22064 | -6/Archives | Accompanied by 3 allies (A7) 22069 | -6/Archives | Received a hacking code to weaken MAIN.C 22192 | -6/Archives | Discovered new exit (range 14) 22356 | -6/Archives | Discovered new exit (range 16) 22370 | -6/Archives | Build established: Scavenger-Gunner 22684 | -6/Archives | Discovered new exit (range 16) 22735 | -6/Archives | Identified exit to Hub_04(d) 22740 | -6/Archives | Entered Hub_04(d) 22740 | -6/Hub_04(d) | Accompanied by 1 ally 22752 | -6/Hub_04(d) | Discovered new exit (range 16) 22981 | -6/Hub_04(d) | Identified exit to Factory 23029 | -6/Hub_04(d) | Discovered exit to Factory (range 11) 23048 | -6/Hub_04(d) | Build established: Scavenger-Skirmisher 23110 | -6/Hub_04(d) | Network Hub disabled 23117 | -6/Hub_04(d) | Entered Factory 23117 | -5/Factory | Evolved 2 slots: Utility x1, Weapon x1 23118 | -5/Factory | Identified exit to Upper Caves 23316 | -5/Factory | Fabricated Hyp. Gauss Rifle? 23597 | -5/Factory | Discovered new exit (range 10) 23613 | -5/Factory | Identified exit to Factory 23637 | -5/Factory | Identified Exp. Melee Analysis Suite (x2) 24034 | -5/Factory | Fabricated Exp. Targeting Computer (x1) 24141 | -5/Factory | Fabricated Hyp. Gauss Rifle? 24498 | -5/Factory | Cargo convoy interrupted 24554 | -5/Factory | Entered Upper Caves 25049 | -5/Upper Caves | Attracted the attention of an 0b10 checkpoint 25277 | -5/Upper Caves | Discovered new exit (range 5) 25283 | -5/Upper Caves | Identified exit to Upper Caves 25289 | -5/Upper Caves | Encountered a Warlord checkpoint 25322 | -5/Upper Caves | Learned Factory stockpile data 25724 | -5/Upper Caves | Entered another Upper Caves area 25876 | -5/Upper Caves | Encountered a Warlord checkpoint 25955 | -5/Upper Caves | Attracted the attention of an 0b10 checkpoint 26031 | -5/Upper Caves | Build established: Scavenger-Gunner 26117 | -5/Upper Caves | Discovered new exit (range 10) 26130 | -5/Upper Caves | Identified exit to Zhirov 26176 | -5/Upper Caves | Entered Zhirov 26176 | -5/Zhirov | Discovered new exit (range 3) 26205 | -5/Zhirov | Met Zhirov 26234 | -5/Zhirov | Learned location of Quarantine (-3) 26234 | -5/Zhirov | Learned location of Testing (-2) 26234 | -5/Zhirov | Learned location of Command (-1) 26248 | -5/Zhirov | Zhirov requested help retrieving the SGEMP Prototype 26273 | -5/Zhirov | Found Alien Artifact 26273 | -5/Zhirov | Identified Integrated Dissipator 26273 | -5/Zhirov | Installed Integrated Dissipator, increased core heat dissipation (+20) 26296 | -5/Zhirov | Found Alien Artifact 26416 | -5/Zhirov | Identified exit to Proximity Caves 26419 | -5/Zhirov | Entered Proximity Caves 26556 | -4/Proximity Caves | Attracted the attention of an 0b10 checkpoint 26927 | -4/Proximity Caves | Discovered exit to Factory (range 16) 26951 | -4/Proximity Caves | Entered Factory 26951 | -4/Factory | Evolved 2 slots: Utility x2 27058 | -4/Factory | Repaired Broken Imp. KE Penetrator 27973 | -4/Factory | Identified exit to Upper Caves 27973 | -4/Factory | Identified exit to Armory 28563 | -4/Factory | Spotted B-86 Titan 28673 | -4/Factory | Destroyed B-86 Titan 28811 | -4/Factory | Entered Upper Caves 29358 | -4/Upper Caves | Discovered new exit (range 14) 29420 | -4/Upper Caves | Identified exit to Upper Caves 29430 | -4/Upper Caves | Entered another Upper Caves area 29645 | -4/Upper Caves | Discovered new exit (range 9) 29665 | -4/Upper Caves | Identified exit to Warlord 29883 | -4/Upper Caves | Entered Warlord 29938 | -4/Warlord | System corruption cleaned by Quarantine Array 30285 | -4/Warlord | Met Warlord 30299 | -4/Warlord | Opened Warlord's prototype stash 30308 | -4/Warlord | Found Prototype Device 30308 | -4/Warlord | Identified System Purifier 30310 | -4/Warlord | Warlord's base attacked by MAIN.C 30319 | -4/Warlord | Found Prototype Hackware 30329 | -4/Warlord | Found Prototype Device 30329 | -4/Warlord | Identified Exp. Cloaking Device 30340 | -4/Warlord | Found Prototype Reactor 30480 | -4/Warlord | Found Prototype Special Weapon 30480 | -4/Warlord | Identified RU-N14's Throwing Claymores v3 30660 | -4/Warlord | Warlord forces counterattacked 30794 | -4/Warlord | Spotted Executioner 30796 | -4/Warlord | Spotted Striker 30855 | -4/Warlord | Spotted Executioner 30857 | -4/Warlord | Destroyed Executioner 30985 | -4/Warlord | Warlord base infiltrated, sounded retreat 30990 | -4/Warlord | Spotted Striker 30990 | -4/Warlord | Spotted Striker 31001 | -4/Warlord | Destroyed Striker 31064 | -4/Warlord | Spotted Executioner 31065 | -4/Warlord | Destroyed Executioner 31070 | -4/Warlord | Spotted Striker 31080 | -4/Warlord | Destroyed Striker 31138 | -4/Warlord | Spotted Executioner 31138 | -4/Warlord | Spotted Executioner 31140 | -4/Warlord | Destroyed Executioner 31145 | -4/Warlord | Destroyed Executioner 31171 | -4/Warlord | Spotted Striker 31179 | -4/Warlord | Destroyed Striker 31198 | -4/Warlord | Found Prototype Processor 31200 | -4/Warlord | Destroyed 9 combat bots 31206 | -4/Warlord | Discovered new exit (range 15) 31216 | -4/Warlord | Spotted Executioner 31226 | -4/Warlord | Spotted Executioner 31230 | -4/Warlord | Destroyed Executioner 31291 | -4/Warlord | Entered Proximity Caves 31668 | -3/Proximity Caves | Discovered new exit (range 10) 31756 | -3/Proximity Caves | Entered Research 31756 | -3/Research | Evolved 2 slots: Power x1, Utility x1 31756 | -3/Research | Identified Ghost Barrier 31757 | -3/Research | Identified Exp. Core Analyzer 32022 | -3/Research | Identified Transdimensional Reconstructor 32022 | -3/Research | Identified Vortex Chain Reactor 32279 | -3/Research | Identified exit to Quarantine 32811 | -3/Research | Discovered new exit (range 7) 32834 | -3/Research | Identified exit to Research 32877 | -3/Research | Found Prototype Processor 32878 | -3/Research | Identified Spectral Analyzer 32882 | -3/Research | Found Prototype Device 32883 | -3/Research | Identified Exp. Thermal Shield 32886 | -3/Research | Found Prototype Device 32886 | -3/Research | Identified Adv. Kinecellerator 33006 | -3/Research | First assault squad dispatched 33107 | -3/Research | Warped through subspace 33137 | -3/Research | Lost 3 parts (1p2u) 33407 | -3/Research | Lost 5 parts (1p1n2u1w) 33411 | -3/Research | Destroyed 8 combat bots 33454 | -3/Research | Entered Quarantine 33530 | -3/Quarantine | Repaired Centrium Heavy Treads 33622 | -3/Quarantine | Cryocooling Duct disabled 33637 | -3/Quarantine | Ambient heat levels rising (+20) 33637 | -3/Quarantine | Non-combat units ordered to evacuate 33872 | -3/Quarantine | Found Prototype Processor 33873 | -3/Quarantine | Identified Exp. Signal Interpreter 34066 | -3/Quarantine | Found Transdimensional Reconstructor 34074 | -3/Quarantine | Found Transdimensional Reconstructor 34177 | -3/Quarantine | Found Alien Artifact 34186 | -3/Quarantine | Found Alien Artifact 34236 | -3/Quarantine | Identified Hpw. Transdimensional Reconstructor (x2) 34288 | -3/Quarantine | Found Alien Artifact 34445 | -3/Quarantine | Repaired Broken Adv. Heavy Treads? 34466 | -3/Quarantine | Found Alien Artifact 34555 | -3/Quarantine | Repaired Railgun? 34606 | -3/Quarantine | Repaired Railgun 34645 | -3/Quarantine | Found Alien Impact Weapon 34726 | -3/Quarantine | System corruption reached 10% 34770 | -3/Quarantine | Identified Dimensional Node Initializer 34885 | -3/Quarantine | Identified Core Reset Matrix 35096 | -3/Quarantine | Discovered exit to Research (range 9) 35125 | -3/Quarantine | Allied Derelicts emerged from ambush trap array 35173 | -3/Quarantine | Build established: Hacker-Gunner 35261 | -3/Quarantine | Identified Core Stripper 35285 | -3/Quarantine | Spotted Fortress 35299 | -3/Quarantine | Destroyed Fortress 35319 | -3/Quarantine | Found Vortex Chain Reactor 35324 | -3/Quarantine | Found Exp. Force Field 35327 | -3/Quarantine | Found Prototype Device 35327 | -3/Quarantine | Identified Thermal Barrier 35342 | -3/Quarantine | Found Prototype Device 35462 | -3/Quarantine | Discovered new exit (range 5) 35467 | -3/Quarantine | Identified exit to Section 7 35471 | -3/Quarantine | Entered Section 7 35672 | -3/Section 7 | Identified EM Dispersion Field 35690 | -3/Section 7 | Spotted S7 Guard 35743 | -3/Section 7 | Destroyed S7 Guard 35764 | -3/Section 7 | Found Prototype Protection 35764 | -3/Section 7 | Identified Hvy. Regenerative Plating 35855 | -3/Section 7 | Found Alien Artifact 35855 | -3/Section 7 | Identified Integrated Singularity Reactor 35855 | -3/Section 7 | Installed Integrated Singularity Reactor, increased core energy generation (+20) 35897 | -3/Section 7 | Spotted S7 Guard 35916 | -3/Section 7 | Found Alien Artifact 35917 | -3/Section 7 | Identified Core Regenerator 35917 | -3/Section 7 | Used Core Regenerator, restored core integrity (+304) 35956 | -3/Section 7 | Destroyed S7 Guard 36131 | -3/Section 7 | Found Alien Artifact 36149 | -3/Section 7 | Identified Integrated Mediator 36149 | -3/Section 7 | Installed Integrated Mediator, increased core attachment efficiency. 36588 | -3/Section 7 | Found Alien Artifact 36618 | -3/Section 7 | Discovered exit to Research (range 16) 36654 | -3/Section 7 | Identified Integrated Reactor 36654 | -3/Section 7 | Installed Integrated Reactor, increased core energy generation (+10) 36668 | -3/Section 7 | Found Integrated Reactor 36668 | -3/Section 7 | Installed Integrated Reactor, increased core energy generation (+10) 36718 | -3/Section 7 | Initialized slip node 36787 | -3/Section 7 | Repaired EM Dispersion Field? 36856 | -3/Section 7 | Spotted B-86 Titan 36901 | -3/Section 7 | Spotted Executioner 36901 | -3/Section 7 | Spotted Executioner 36933 | -3/Section 7 | Destroyed Executioner 36941 | -3/Section 7 | Destroyed Executioner 36962 | -3/Section 7 | Found Exp. Targeting Computer 37076 | -3/Section 7 | Spotted B-99 Colossus 37135 | -3/Section 7 | Destroyed B-99 Colossus 37147 | -3/Section 7 | Build established: Scavenger-Gunner 37170 | -3/Section 7 | Found Prototype Ballistic Gun 37173 | -3/Section 7 | Found Prototype Ballistic Gun 37175 | -3/Section 7 | Identified Multirail (x2) 37176 | -3/Section 7 | Lost 7 parts (2p1n2u2w) 37222 | -3/Section 7 | Scanned by Researcher 37233 | -3/Section 7 | Found Alien Artifact 37234 | -3/Section 7 | Identified Core Expander 37234 | -3/Section 7 | Installed Core Expander, added new Utility slot 37249 | -3/Section 7 | Intercept squad dispatched 37262 | -3/Section 7 | Spotted Tracker 37267 | -3/Section 7 | Spotted Tracker 37277 | -3/Section 7 | Destroyed Tracker 37293 | -3/Section 7 | Spotted Combat Programmer 37295 | -3/Section 7 | Found Exp. Targeting Computer 37298 | -3/Section 7 | Spotted Combat Programmer 37303 | -3/Section 7 | Destroyed Combat Programmer 37324 | -3/Section 7 | Destroyed Combat Programmer 37334 | -3/Section 7 | Destroyed Tracker 37342 | -3/Section 7 | Found Exp. Targeting Computer 37408 | -3/Section 7 | Found Alien Artifact 37408 | -3/Section 7 | Identified LRC Armor 37408 | -3/Section 7 | Installed LRC Armor, increased core integrity (+250) 37411 | -3/Section 7 | Found Alien Artifact 37411 | -3/Section 7 | Identified LRC Boosters 37411 | -3/Section 7 | Installed LRC Boosters, increased mass support (+10) 37471 | -3/Section 7 | First assault squad dispatched 37552 | -3/Section 7 | Warped through subspace 37633 | -3/Section 7 | Lost 3 parts (1n2u) 37748 | -3/Section 7 | Entered Research 37748 | -2/Research | Evolved 2 slots: Utility x2 37792 | -2/Research | Identified exit to Testing 37955 | -2/Research | Warped through subspace 38096 | -2/Research | Self-destructed Last Messages --------------- 38091_ G-73 Enforcer destroyed. 38091_ Switching to secondary target: G-73 Enforcer. 38091_ Slug penetrates G-73 Enforcer. 38091_ U-05 Engineer lays Concrete. 38092_ C-30 ARC bursts open, deploying its payload. 38092_ G-73 Enforcer unfolds itself. 38092_ K-01 Serf collects debris. 38093_ U-05 Engineer lays Concrete. 38094_ Slug penetrates G-73 Enforcer. 38094_ G-73 Enforcer suffers critical hit (Destroy). 38094_ Destroyed Unknown Energy Gun. 38094_ Slug penetrates G-73 Enforcer. 38094_ Slug penetrates Wall. 38094_ Slug penetrates U-05 Engineer. 38094_ U-05 Engineer destroyed. 38094_ Slug penetrates G-73 Enforcer. 38094_ U-05 Engineer builds a Wall. 38095_ U-05 Engineer lays Concrete. 38096_ Wall collapses. 38096_ K-01 Serf collects debris. Map ----- +----------------------------------------------------+ | ???????????# """""%*#????????????########## | | ???????????# """""!=#???????????????????? | | ???????????# [%! !=#?????????????????? | | ???????????# |!* ![|!#???????????????? | | ???????????#######+###??????????????# | | ??? ######%[*#???????????????# ####+#### | | ??? !! #???????????????# ????????? | | ??? ######! =#???????????????# ?????????? | | ????????????????##[##?????????????? ??????????? | | ?????????????????# #????????????? ??????????? | | ?????????????????# #????????????? ???????????? | | ?????????????????# #??????????? =! !"?????????? | | ?????????????????# #??????????? =! ! ?????????? | | ?????????????????# #?????????? !""????????? | | ?????????????????# #?????????? G????????? | | ?????????????????# #?????????# !% "?????????? | | ???????????####### ########### % ! ""????????? | | ???? + # ""#???????? | | ???????????########## # u #???????? | | ??????????????????#?# ""k ] # # ??????? | | ????????????????????# " # " ?????? | | ????????????????????# "T !#=*!! #???????? | | ????????????????????# " [uug[%|% % #???????? | | ????????????????????# ==g#uk%%! * #???????? | | ????????????????????# ![!%ggu!|= #???????? | | ????????????????????# @=%!;g=!! #???????? | | ????????????????????##########%=% #???????? | | ??????????????????????????????? #???????? | | ??????????????????????????????? #???????? | | ???????????????????????????????w w ???????? | | ???????????????????????????????? != ????????? | | ?????????????????????????????????!= ????????? | | ?????????????????????????????????!= ?????????? | | ??????????????????????????????????### ?????????? | | ????????????????????????????????????? ???????????? | | ?????????????????????????????????????????????????? | | ?????????????????????????????????????????????????? | | ?????????????????????????????????????????????????? | | ?????????????????????????????????????????????????? | | ?????????????????????????????????????????????????? | | ?????????????????????????????????????????????????? | | ?????????????????????????????????????????????????? | | ?????????????????????????????????????????????????? | | ?????????????????????????????????????????????????? | | ?????????????????????????????????????????????????? | | ?????????????????????????????????????????????????? | | ?????????????????????????????????????????????????? | | ?????????????????????????????????????????????????? | | ?????????????????????????????????????????????????? | | ?????????????????????????????????????????????????? | +----------------------------------------------------+ Best States ------------- Heat Dissipation 126 Energy Generation 95 Energy Capacity 700 Matter Stores 300 Matter Capacity 700 Sight Range 16 Robot Scan Range 18 Terrain Scan Density 10 Jamming Range 16 Power Amplification 30 Armor Coverage 1200 Resistance: KI 30 Resistance: EM 75 Weapon Shielding 90 Weapon Cycling 25 Evasion (%) 40 Targeting Accuracy 24 Target Analysis 8 Armor Integrity Analysis 40 Recoil Reduction 4 Salvage Targeting 4 Offensive Hacking 24 Defensive Hacking 45 Authchip Count 4 Item Schematics ----------------- Hcp. Storage Unit | -9/Materials | Hacked Exp. Targeting Computer | -8/Materials | Scanalyzed Hvy. Treads | -7/Factory | Scanalyzed Combat Drone Bay | -7/Data Miner | Free Lgt. Regenerative Plating | -7/Data Miner | Free Biomechanical Wings | -7/Data Miner | Free Imp. Lightning Gun | -7/Data Miner | Free Field Propulsion Drive | -7/Data Miner | Free Imp. Recalibrator | -7/Data Miner | Free Hvy. Phase Cannon | -7/Data Miner | Free Imp. Arc Projector | -7/Data Miner | Free Variable Charge Gun | -7/Data Miner | Free Hvy. Gauss Cannon | -7/Data Miner | Free Imp. Antigrav System | -7/Data Miner | Free Hyp. Gauss Rifle | -6/Factory | Hacked Imp. Hacking Suite | -6/Factory | Hacked Imp. KE Penetrator | -5/Factory | Scanalyzed Centrium Heavy Treads | -5/Factory | Scanalyzed Assault Drone Bay | -5/Zhirov | Free Exp. Heat Sink | -5/Zhirov | Free Exp. Optical Array | -5/Zhirov | Free Imp. Arc Thrower | -5/Zhirov | Free Biometal Heavy Treads | -4/Factory | Hacked Lrn. Sensor Array | -3/Quarantine | Hacked Hyp. Railgun | -3/Quarantine | Hacked Exp. Force Field | -3/Quarantine | Hacked Enh. Armored Heavy Treads | -3/Quarantine | Hacked Lrn. Tractor Beam | -3/Quarantine | Scanalyzed Robot Schematics ------------------ A-15 Conveyor | -7/Data Miner | Free R-10 Processor | -7/Data Miner | Free Y-54 Guardian | -7/Data Miner | Free M-28 Smith | -7/Data Miner | Free I-36 Angel | -7/Data Miner | Free B-60 Warrior | -7/Data Miner | Free B-48 Gladiator | -7/Data Miner | Free Fabricated ------------ Hvy. Treads | x2 | -7/Factory | Authchip Hyp. Gauss Rifle | x2 | -6/Factory Hyp. Gauss Rifle | x2 | -5/Factory Exp. Targeting Computer | x1 | -5/Factory Hyp. Gauss Rifle | x2 | -5/Factory Alien Tech Used ----------------- Integrated Dissipator Transdimensional Reconstructor Core Stripper Integrated Singularity Reactor Core Regenerator Integrated Mediator Integrated Reactor Dimensional Node Initializer Core Expander LRC Armor LRC Boosters High-powered Transdimensional Reconstructor Achievements -------------- None Challenges ------------ None Game ------ Seed CoolantFieldJammer Manual? 0 Play Time 04:17:32 Cumulative 1356.1 hours Start 2021.10.26 @ 15:38:13 End 2021.10.27 @ 13:07:18 Sessions 3 Manual Loads 0 Difficulty Rogue Special Mode None Game No. 467 Rogue 467 Adventurer 0 Explorer 0 Win Type - Total 95 Types 21/12/37/5/1/2/15/1/1 Lore% 95 Gallery% 95 Achievement% 86 Wizard Run 0 Options --------- ASCII 0 Keyboard 0 Movement Numpad Keybinds 0 Fullscreen 1 Font 18/SmallcapsGlow Map View 76x50 Tactical HUD 1 Map Filters NONE Filters NONE Steam 1 RUN: 9e0775d9-e216-467f-a89a-44c8ed117262